Workbook

Sheet Instructions
A1: This spreadsheet is the personal work of Tim Baker, CFA and is not an official IEX Cloud product. All data is sourced via the IEX Cloud API.
A2: IEX Cloud Services LLC makes no promises or guarantees herein regarding results from particular products and services, and neither the information, nor any opinion expressed here, constitutes a solicitation or offer to buy or sell any securities or provide any investment advice or service.
A3: Instructions | B3: Links
A4: Sign up for an IEX Cloud account.
A5: Go to the settings tab: Enter your IEX Cloud token into the settings TAB.
A6: Comps Table / Screener | B6: Click here to go to CompsTable
A7: Enter your ticker list into the comps table. You can copy and paste a list, and I incuded the list of S&P 500 firms. Use the Refresh button and it will pull the data from the API, and populate the data.
A8: If you want to add additional financial data, I included a lookup cell, and each of the blue header cells have a drop down (use the second one) | B8: Click here for item lookup | C8: ----------------------->
A9: BONUS Side by Side View: | B9: Click here to go to Side by Side View
A10: I also included a SidebySide view of the data. Add a new ticker at the top (needs to be in the comps table), and copy the formulae from left to right in the expanded table. | C10: ------------------------------------------------------------------------------------------------------->
A11: BONUS: S&P500 ticker list from Wikepedia, a few ETFs, and a ticker lookup tab, which hits the IEX Cloud search end point. | B11: Click her to go to the S&P 500 ticker list
A12: I also pull a list of US companies and tickers for the S&P 500. This data is not provided by IEX Cloud.
A13: Note: There are some hidden tabs which is where PowerQuery pulls data into from the IEX Cloud API.
A14: Notes / about this spreadsheet | B14: Links
A15: This spreadsheet can be used to screen thousands of U.S. listed companies. This is the personal work of Tim Baker, and is not an official IEX Cloud product.
A16: This spreadhseet is provided "as is" and may contain errors or differences to some calculation conventions used in financial analysis. Do let me know via GitHub if you have any questions, or corrections. | B16: https://github.com/timbaker-iex
A17: It is supplied free of charge. Should you make improvements to this spreadsheet, feel free to contribute it back to the Excel community at IEX Cloud. | B17: community@iexcloud.io
A18: In order to update this spreadsheet with different companies, you will need to sign up for an IEX Cloud account by signing up here: NOTE this spreadsheet will function with a FREE account. EACH COMPANY uses about 10,400 credits. SUGGEST YOU EXPERIMENT WITH SANDBOX. | B18: https://iexcloud.io/cloud-login#/register
A19: Additional information about Financial Statements endpoints can be found here: | B19: data-migration-updates-to-financial-statements
A20: This spreadsheet is formatted for Industrial (i.e. non-financial/bank) companies.
A21: The fundamental data is sourced by IEX Cloud from the SEC website - linked here. | B21: https://www.sec.gov/edgar/search/
A22: I make adjustments to this data, and do a rudimentary merger of various fields to combine "similar" financial items. To view these adjustments hit Data/Queries & Connections and edit the FundiesAdj powerQuery. Then select "Advanced Editor" to view the M Query code. Each "Rollup" or adjustment is marked: //Combine xbrl tems for Revenue. Or go to the Adjustments TAB. | B22: https://iexcloud.io/docs/api/#financials-as-reported
A23: SEC filings are typically 3 quarters (10-Q) and 1 annual (10-k) per year - so 4Q data is not available, nor trailing twelve months. This spreadsheet is setup for 10-K (annual) reports, but can easily be adjusted to quarterly by editing the URL in the comps table (replace 10-K with 10-Q). Valuation items will need to be adjusted to annualise the income statement data.
A24: The spreadhseet will pick up the latest filing for each company, unless for some reason IEX Cloud has not processed the filing.
A25: Want to know how I built this? Go to this blog post, and watch the YouTube video (Intro to Fundamentals in Excel): | B25: https://iexcloud.io/blog/an-introduction-to-fundamental-analysis-in-excel
A26: Go PAID: I highly recommend upgrading your account to a paid account to get you access to our full statement normalised fundamental data from New Constructs. This data is fully normalised across almost 200 statement items, as well as 4 quarter, trailing 12m and full annual data going back 20 years. And over 100 other endpoints and massively expanded available data. AND CLOUD CASH IS INCLUDED SO PERFECT FOR REPEAT QUERIES | B26: https://iexcloud.io/docs/api/#financials

Sheet Settings
B1: Works with free accounts for a limited number of stocks. Works best with a Paid account.
A4: IEX Cloud Token | C4: < ----------- Enter your iexcloud token here
A5: Secret Token | C5: < ----------- Enter your secret iexcloud token here (prefix sk)
A7: Scale in Millions | B7: Y
B8: =IF(B7="Y",1000000,1) -> 1000000
A11: Your Account (requires Data/Refresh)
A12: creditLimit | B12: =VLOOKUP(Settings!A12,FetchAccount[],2,FALSE) -> 2000000000
A13: creditsUsed | B13: =VLOOKUP(Settings!A13,FetchAccount[],2,FALSE) -> 103542345
A17: Base URLs (used in the comps table to construct the URLs)
A18: https://cloud.iexapis.com/stable/stock/
A19: https://cloud.iexapis.com/stable/data-points/
A20: https://cloud.iexapis.com/stable/account/metadata

Sheet CompsTable
L1: As Reported Fields lookup / dropdown -------> OR select column header (blue) and use right hand drop down | P1: OperatingIncomeLoss | W1: (do not delete) | X1: (do not delete)
A2: Ticker | B2: securityName | C2: latestPrice | D2: changePercent | E2: week52high | F2: %offhigh | G2: week52low | H2: %offLow | I2: last-dividend-amount | J2: last-dividend-payment-date | K2: DividendYield | L2: TTMeps | M2: Trailing P/E | N2: sharesOutstanding | O2: marketcap | P2: Revenues | Q2: OperatingIncomeLoss | R2: NetIncome | S2: EarningsPerShareBasic | T2: EarningsPerShareDiluted | U2: industry | V2: website | W2: URL_AsReported | X2: URL_Company
A3: AAPL | B3: =VLOOKUP(CompsTable[[#This Row],[Ticker]],CompanyData[],MATCH(B$2,CompanyData[#Headers],0),FALSE) -> Apple Inc | C3: =VALUE(_xlfn.WEBSERVICE(Stock&CompsTable[[#This Row],[Ticker]]&"/quote/"&C$2&"?token="&my_token)) ->  | D3: =VALUE(_xlfn.WEBSERVICE(Stock&CompsTable[[#This Row],[Ticker]]&"/quote/"&D$2&"?token="&my_token)) ->  | E3: =VALUE(_xlfn.WEBSERVICE(Stock&CompsTable[[#This Row],[Ticker]]&"/stats/"&E$2&"?token="&my_token)) ->  | F3: =+CompsTable[[#This Row],[latestPrice]]/CompsTable[[#This Row],[week52high]]-1 ->  | G3: =VALUE(_xlfn.WEBSERVICE(Stock&CompsTable[[#This Row],[Ticker]]&"/stats/"&G$2&"?token="&my_token)) ->  | H3: =+CompsTable[[#This Row],[latestPrice]]/CompsTable[[#This Row],[week52low]]-1 ->  | I3: =IFERROR(VALUE(SUBSTITUTE(_xlfn.WEBSERVICE(datapoints&CompsTable[[#This Row],[Ticker]]&"/"&I$2&"?token="&my_token),"""","")),"") ->  | J3: =IFERROR(VALUE(SUBSTITUTE(_xlfn.WEBSERVICE(datapoints&CompsTable[[#This Row],[Ticker]]&"/"&J$2&"?token="&my_token),"""","")),"") ->  | K3: =IFERROR(VALUE(SUBSTITUTE(_xlfn.WEBSERVICE(datapoints&CompsTable[[#This Row],[Ticker]]&"/"&K$2&"?token="&my_token),"""","")),"") ->  | L3: =IFERROR(VALUE(_xlfn.WEBSERVICE(datapoints&CompsTable[[#This Row],[Ticker]]&"/"&L$2&"?token="&my_token)),"") ->  | M3: =IFERROR(CompsTable[[#This Row],[latestPrice]]/CompsTable[[#This Row],[TTMeps]],"") ->  | N3: =VALUE(_xlfn.WEBSERVICE(Stock&CompsTable[[#This Row],[Ticker]]&"/stats/"&N$2&"?token="&my_token))/1000000 ->  | O3: =VALUE(_xlfn.WEBSERVICE(Stock&CompsTable[[#This Row],[Ticker]]&"/stats/"&O$2&"?token="&my_token))/1000000 ->  | P3: =IFERROR(VLOOKUP(CompsTable[[#This Row],[Ticker]],FundiesAdj[],MATCH(P$2,FundiesAdj[#Headers],0),FALSE)/Millions,"") -> 274515 | Q3: =IFERROR(VLOOKUP(CompsTable[[#This Row],[Ticker]],FundiesAdj[],MATCH(Q$2,FundiesAdj[#Headers],0),FALSE)/Millions,"") -> 66288 | R3: =IFERROR(VLOOKUP(CompsTable[[#This Row],[Ticker]],FundiesAdj[],MATCH(R$2,FundiesAdj[#Headers],0),FALSE)/Millions,"") -> 57411 | S3: =IFERROR(VLOOKUP(CompsTable[[#This Row],[Ticker]],FundiesAdj[],MATCH(S$2,FundiesAdj[#Headers],0),FALSE),"") -> 3.31 | T3: =IFERROR(VLOOKUP(CompsTable[[#This Row],[Ticker]],FundiesAdj[],MATCH(T$2,FundiesAdj[#Headers],0),FALSE),"") -> 3.28 | U3: =VLOOKUP(CompsTable[[#This Row],[Ticker]],CompanyData[],MATCH(U$2,CompanyData[#Headers],0),FALSE) -> Electronic Computer Manufacturing | V3: =VLOOKUP(CompsTable[[#This Row],[Ticker]],CompanyData[],MATCH(V$2,CompanyData[#Headers],0),FALSE) -> https://www.apple.com/ | W3: ="https://cloud.iexapis.com/stable/time-series//REPORTED_FINANCIALS/"&CompsTable[[#This Row],[Ticker]]&"/10-K?last=1&token="&my_token -> https://cloud.iexapis.com/stable/time-series//REPORTED_FINANCIALS/AAPL/10-K?last=1&token= | X3: ="https://cloud.iexapis.com/stable/stock/"&CompsTable[[#This Row],[Ticker]]&"/company/industry?token="&my_token -> https://cloud.iexapis.com/stable/stock/AAPL/company/industry?token=
A4: FB | B4: =VLOOKUP(CompsTable[[#This Row],[Ticker]],CompanyData[],MATCH(B$2,CompanyData[#Headers],0),FALSE) -> Facebook Inc - Class A | C4: =VALUE(_xlfn.WEBSERVICE(Stock&CompsTable[[#This Row],[Ticker]]&"/quote/"&C$2&"?token="&my_token)) ->  | D4: =VALUE(_xlfn.WEBSERVICE(Stock&CompsTable[[#This Row],[Ticker]]&"/quote/"&D$2&"?token="&my_token)) ->  | E4: =VALUE(_xlfn.WEBSERVICE(Stock&CompsTable[[#This Row],[Ticker]]&"/stats/"&E$2&"?token="&my_token)) ->  | F4: =+CompsTable[[#This Row],[latestPrice]]/CompsTable[[#This Row],[week52high]]-1 ->  | G4: =VALUE(_xlfn.WEBSERVICE(Stock&CompsTable[[#This Row],[Ticker]]&"/stats/"&G$2&"?token="&my_token)) ->  | H4: =+CompsTable[[#This Row],[latestPrice]]/CompsTable[[#This Row],[week52low]]-1 ->  | I4: =IFERROR(VALUE(SUBSTITUTE(_xlfn.WEBSERVICE(datapoints&CompsTable[[#This Row],[Ticker]]&"/"&I$2&"?token="&my_token),"""","")),"") ->  | J4: =IFERROR(VALUE(SUBSTITUTE(_xlfn.WEBSERVICE(datapoints&CompsTable[[#This Row],[Ticker]]&"/"&J$2&"?token="&my_token),"""","")),"") ->  | K4: =IFERROR(VALUE(SUBSTITUTE(_xlfn.WEBSERVICE(datapoints&CompsTable[[#This Row],[Ticker]]&"/"&K$2&"?token="&my_token),"""","")),"") ->  | L4: =IFERROR(VALUE(_xlfn.WEBSERVICE(datapoints&CompsTable[[#This Row],[Ticker]]&"/"&L$2&"?token="&my_token)),"") ->  | M4: =IFERROR(CompsTable[[#This Row],[latestPrice]]/CompsTable[[#This Row],[TTMeps]],"") ->  | N4: =VALUE(_xlfn.WEBSERVICE(Stock&CompsTable[[#This Row],[Ticker]]&"/stats/"&N$2&"?token="&my_token))/1000000 ->  | O4: =VALUE(_xlfn.WEBSERVICE(Stock&CompsTable[[#This Row],[Ticker]]&"/stats/"&O$2&"?token="&my_token))/1000000 ->  | P4: =IFERROR(VLOOKUP(CompsTable[[#This Row],[Ticker]],FundiesAdj[],MATCH(P$2,FundiesAdj[#Headers],0),FALSE)/Millions,"") -> 85965 | Q4: =IFERROR(VLOOKUP(CompsTable[[#This Row],[Ticker]],FundiesAdj[],MATCH(Q$2,FundiesAdj[#Headers],0),FALSE)/Millions,"") -> 32671 | R4: =IFERROR(VLOOKUP(CompsTable[[#This Row],[Ticker]],FundiesAdj[],MATCH(R$2,FundiesAdj[#Headers],0),FALSE)/Millions,"") -> 29146 | S4: =IFERROR(VLOOKUP(CompsTable[[#This Row],[Ticker]],FundiesAdj[],MATCH(S$2,FundiesAdj[#Headers],0),FALSE),"") -> 10.22 | T4: =IFERROR(VLOOKUP(CompsTable[[#This Row],[Ticker]],FundiesAdj[],MATCH(T$2,FundiesAdj[#Headers],0),FALSE),"") -> 10.09 | U4: =VLOOKUP(CompsTable[[#This Row],[Ticker]],CompanyData[],MATCH(U$2,CompanyData[#Headers],0),FALSE) -> Data Processing, Hosting, and Related Services | V4: =VLOOKUP(CompsTable[[#This Row],[Ticker]],CompanyData[],MATCH(V$2,CompanyData[#Headers],0),FALSE) -> https://www.facebook.com | W4: ="https://cloud.iexapis.com/stable/time-series//REPORTED_FINANCIALS/"&CompsTable[[#This Row],[Ticker]]&"/10-K?last=1&token="&my_token -> https://cloud.iexapis.com/stable/time-series//REPORTED_FINANCIALS/FB/10-K?last=1&token= | X4: ="https://cloud.iexapis.com/stable/stock/"&CompsTable[[#This Row],[Ticker]]&"/company/industry?token="&my_token -> https://cloud.iexapis.com/stable/stock/FB/company/industry?token=
A5: GME | B5: =VLOOKUP(CompsTable[[#This Row],[Ticker]],CompanyData[],MATCH(B$2,CompanyData[#Headers],0),FALSE) -> Gamestop Corporation - Class A | C5: =VALUE(_xlfn.WEBSERVICE(Stock&CompsTable[[#This Row],[Ticker]]&"/quote/"&C$2&"?token="&my_token)) ->  | D5: =VALUE(_xlfn.WEBSERVICE(Stock&CompsTable[[#This Row],[Ticker]]&"/quote/"&D$2&"?token="&my_token)) ->  | E5: =VALUE(_xlfn.WEBSERVICE(Stock&CompsTable[[#This Row],[Ticker]]&"/stats/"&E$2&"?token="&my_token)) ->  | F5: =+CompsTable[[#This Row],[latestPrice]]/CompsTable[[#This Row],[week52high]]-1 ->  | G5: =VALUE(_xlfn.WEBSERVICE(Stock&CompsTable[[#This Row],[Ticker]]&"/stats/"&G$2&"?token="&my_token)) ->  | H5: =+CompsTable[[#This Row],[latestPrice]]/CompsTable[[#This Row],[week52low]]-1 ->  | I5: =IFERROR(VALUE(SUBSTITUTE(_xlfn.WEBSERVICE(datapoints&CompsTable[[#This Row],[Ticker]]&"/"&I$2&"?token="&my_token),"""","")),"") ->  | J5: =IFERROR(VALUE(SUBSTITUTE(_xlfn.WEBSERVICE(datapoints&CompsTable[[#This Row],[Ticker]]&"/"&J$2&"?token="&my_token),"""","")),"") ->  | K5: =IFERROR(VALUE(SUBSTITUTE(_xlfn.WEBSERVICE(datapoints&CompsTable[[#This Row],[Ticker]]&"/"&K$2&"?token="&my_token),"""","")),"") ->  | L5: =IFERROR(VALUE(_xlfn.WEBSERVICE(datapoints&CompsTable[[#This Row],[Ticker]]&"/"&L$2&"?token="&my_token)),"") ->  | M5: =IFERROR(CompsTable[[#This Row],[latestPrice]]/CompsTable[[#This Row],[TTMeps]],"") ->  | N5: =VALUE(_xlfn.WEBSERVICE(Stock&CompsTable[[#This Row],[Ticker]]&"/stats/"&N$2&"?token="&my_token))/1000000 ->  | O5: =VALUE(_xlfn.WEBSERVICE(Stock&CompsTable[[#This Row],[Ticker]]&"/stats/"&O$2&"?token="&my_token))/1000000 ->  | P5: =IFERROR(VLOOKUP(CompsTable[[#This Row],[Ticker]],FundiesAdj[],MATCH(P$2,FundiesAdj[#Headers],0),FALSE)/Millions,"") -> 5089.8 | Q5: =IFERROR(VLOOKUP(CompsTable[[#This Row],[Ticker]],FundiesAdj[],MATCH(Q$2,FundiesAdj[#Headers],0),FALSE)/Millions,"") -> -237.8 | R5: =IFERROR(VLOOKUP(CompsTable[[#This Row],[Ticker]],FundiesAdj[],MATCH(R$2,FundiesAdj[#Headers],0),FALSE)/Millions,"") -> -215.3 | S5: =IFERROR(VLOOKUP(CompsTable[[#This Row],[Ticker]],FundiesAdj[],MATCH(S$2,FundiesAdj[#Headers],0),FALSE),"") -> -3.31 | T5: =IFERROR(VLOOKUP(CompsTable[[#This Row],[Ticker]],FundiesAdj[],MATCH(T$2,FundiesAdj[#Headers],0),FALSE),"") -> -3.31 | U5: =VLOOKUP(CompsTable[[#This Row],[Ticker]],CompanyData[],MATCH(U$2,CompanyData[#Headers],0),FALSE) -> Electronics Stores | V5: =VLOOKUP(CompsTable[[#This Row],[Ticker]],CompanyData[],MATCH(V$2,CompanyData[#Headers],0),FALSE) -> http://news.gamestop.com/ | W5: ="https://cloud.iexapis.com/stable/time-series//REPORTED_FINANCIALS/"&CompsTable[[#This Row],[Ticker]]&"/10-K?last=1&token="&my_token -> https://cloud.iexapis.com/stable/time-series//REPORTED_FINANCIALS/GME/10-K?last=1&token= | X5: ="https://cloud.iexapis.com/stable/stock/"&CompsTable[[#This Row],[Ticker]]&"/company/industry?token="&my_token -> https://cloud.iexapis.com/stable/stock/GME/company/industry?token=
A6: TSLA | B6: =VLOOKUP(CompsTable[[#This Row],[Ticker]],CompanyData[],MATCH(B$2,CompanyData[#Headers],0),FALSE) -> Tesla Inc | C6: =VALUE(_xlfn.WEBSERVICE(Stock&CompsTable[[#This Row],[Ticker]]&"/quote/"&C$2&"?token="&my_token)) ->  | D6: =VALUE(_xlfn.WEBSERVICE(Stock&CompsTable[[#This Row],[Ticker]]&"/quote/"&D$2&"?token="&my_token)) ->  | E6: =VALUE(_xlfn.WEBSERVICE(Stock&CompsTable[[#This Row],[Ticker]]&"/stats/"&E$2&"?token="&my_token)) ->  | F6: =+CompsTable[[#This Row],[latestPrice]]/CompsTable[[#This Row],[week52high]]-1 ->  | G6: =VALUE(_xlfn.WEBSERVICE(Stock&CompsTable[[#This Row],[Ticker]]&"/stats/"&G$2&"?token="&my_token)) ->  | H6: =+CompsTable[[#This Row],[latestPrice]]/CompsTable[[#This Row],[week52low]]-1 ->  | I6: =IFERROR(VALUE(SUBSTITUTE(_xlfn.WEBSERVICE(datapoints&CompsTable[[#This Row],[Ticker]]&"/"&I$2&"?token="&my_token),"""","")),"") ->  | J6: =IFERROR(VALUE(SUBSTITUTE(_xlfn.WEBSERVICE(datapoints&CompsTable[[#This Row],[Ticker]]&"/"&J$2&"?token="&my_token),"""","")),"") ->  | K6: =IFERROR(VALUE(SUBSTITUTE(_xlfn.WEBSERVICE(datapoints&CompsTable[[#This Row],[Ticker]]&"/"&K$2&"?token="&my_token),"""","")),"") ->  | L6: =IFERROR(VALUE(_xlfn.WEBSERVICE(datapoints&CompsTable[[#This Row],[Ticker]]&"/"&L$2&"?token="&my_token)),"") ->  | M6: =IFERROR(CompsTable[[#This Row],[latestPrice]]/CompsTable[[#This Row],[TTMeps]],"") ->  | N6: =VALUE(_xlfn.WEBSERVICE(Stock&CompsTable[[#This Row],[Ticker]]&"/stats/"&N$2&"?token="&my_token))/1000000 ->  | O6: =VALUE(_xlfn.WEBSERVICE(Stock&CompsTable[[#This Row],[Ticker]]&"/stats/"&O$2&"?token="&my_token))/1000000 ->  | P6: =IFERROR(VLOOKUP(CompsTable[[#This Row],[Ticker]],FundiesAdj[],MATCH(P$2,FundiesAdj[#Headers],0),FALSE)/Millions,"") -> 31536 | Q6: =IFERROR(VLOOKUP(CompsTable[[#This Row],[Ticker]],FundiesAdj[],MATCH(Q$2,FundiesAdj[#Headers],0),FALSE)/Millions,"") -> 1994 | R6: =IFERROR(VLOOKUP(CompsTable[[#This Row],[Ticker]],FundiesAdj[],MATCH(R$2,FundiesAdj[#Headers],0),FALSE)/Millions,"") -> 862 | S6: =IFERROR(VLOOKUP(CompsTable[[#This Row],[Ticker]],FundiesAdj[],MATCH(S$2,FundiesAdj[#Headers],0),FALSE),"") -> 0.74 | T6: =IFERROR(VLOOKUP(CompsTable[[#This Row],[Ticker]],FundiesAdj[],MATCH(T$2,FundiesAdj[#Headers],0),FALSE),"") -> 0.64 | U6: =VLOOKUP(CompsTable[[#This Row],[Ticker]],CompanyData[],MATCH(U$2,CompanyData[#Headers],0),FALSE) -> Automobile Manufacturing | V6: =VLOOKUP(CompsTable[[#This Row],[Ticker]],CompanyData[],MATCH(V$2,CompanyData[#Headers],0),FALSE) -> https://www.tesla.com/ | W6: ="https://cloud.iexapis.com/stable/time-series//REPORTED_FINANCIALS/"&CompsTable[[#This Row],[Ticker]]&"/10-K?last=1&token="&my_token -> https://cloud.iexapis.com/stable/time-series//REPORTED_FINANCIALS/TSLA/10-K?last=1&token= | X6: ="https://cloud.iexapis.com/stable/stock/"&CompsTable[[#This Row],[Ticker]]&"/company/industry?token="&my_token -> https://cloud.iexapis.com/stable/stock/TSLA/company/industry?token=
A9: ^ add tickers here. You can insert new rows too.
A10: to remove tickers, delete rows from table. Do not remove top row!

Sheet SideBySide
B1: Section | C1: Item | D1: AAPL | E1: GME | F1: FB | G1: TSLA | H1: Add ticker (must be included in your comps table)
D2: =SUBSTITUTE(_xlfn.WEBSERVICE("https://cloud.iexapis.com/stable/stock/"&D1&"/stats/companyName?token="&my_token),"""","") ->  | E2: =SUBSTITUTE(_xlfn.WEBSERVICE("https://cloud.iexapis.com/stable/stock/"&E1&"/stats/companyName?token="&my_token),"""","") ->  | F2: =SUBSTITUTE(_xlfn.WEBSERVICE("https://cloud.iexapis.com/stable/stock/"&F1&"/stats/companyName?token="&my_token),"""","") ->  | G2: =SUBSTITUTE(_xlfn.WEBSERVICE("https://cloud.iexapis.com/stable/stock/"&G1&"/stats/companyName?token="&my_token),"""","") ->  | H2: Copy column across
B3: Income Statement
C4: Revenues | D4: =INDEX(FundiesAdj[],MATCH(D$1,FundiesAdj[Ticker],0),MATCH($C4,FundiesAdj[#Headers],0))/Millions -> 274515 | E4: =INDEX(FundiesAdj[],MATCH(E$1,FundiesAdj[Ticker],0),MATCH($C4,FundiesAdj[#Headers],0))/Millions -> 5089.8 | F4: =INDEX(FundiesAdj[],MATCH(F$1,FundiesAdj[Ticker],0),MATCH($C4,FundiesAdj[#Headers],0))/Millions -> 85965 | G4: =INDEX(FundiesAdj[],MATCH(G$1,FundiesAdj[Ticker],0),MATCH($C4,FundiesAdj[#Headers],0))/Millions -> 31536
C5: CostOfGoods | D5: =INDEX(FundiesAdj[],MATCH(D$1,FundiesAdj[Ticker],0),MATCH($C5,FundiesAdj[#Headers],0))/Millions -> 169559 | E5: =INDEX(FundiesAdj[],MATCH(E$1,FundiesAdj[Ticker],0),MATCH($C5,FundiesAdj[#Headers],0))/Millions -> 3830.3 | F5: =INDEX(FundiesAdj[],MATCH(F$1,FundiesAdj[Ticker],0),MATCH($C5,FundiesAdj[#Headers],0))/Millions -> 16692 | G5: =INDEX(FundiesAdj[],MATCH(G$1,FundiesAdj[Ticker],0),MATCH($C5,FundiesAdj[#Headers],0))/Millions -> 24906
C6: PreTaxProfit | D6: =INDEX(FundiesAdj[],MATCH(D$1,FundiesAdj[Ticker],0),MATCH($C6,FundiesAdj[#Headers],0))/Millions -> 67091 | E6: =INDEX(FundiesAdj[],MATCH(E$1,FundiesAdj[Ticker],0),MATCH($C6,FundiesAdj[#Headers],0))/Millions -> -269.9 | F6: =INDEX(FundiesAdj[],MATCH(F$1,FundiesAdj[Ticker],0),MATCH($C6,FundiesAdj[#Headers],0))/Millions -> 33180 | G6: =INDEX(FundiesAdj[],MATCH(G$1,FundiesAdj[Ticker],0),MATCH($C6,FundiesAdj[#Headers],0))/Millions -> 1154
C7: NetIncome | D7: =INDEX(FundiesAdj[],MATCH(D$1,FundiesAdj[Ticker],0),MATCH($C7,FundiesAdj[#Headers],0))/Millions -> 57411 | E7: =INDEX(FundiesAdj[],MATCH(E$1,FundiesAdj[Ticker],0),MATCH($C7,FundiesAdj[#Headers],0))/Millions -> -215.3 | F7: =INDEX(FundiesAdj[],MATCH(F$1,FundiesAdj[Ticker],0),MATCH($C7,FundiesAdj[#Headers],0))/Millions -> 29146 | G7: =INDEX(FundiesAdj[],MATCH(G$1,FundiesAdj[Ticker],0),MATCH($C7,FundiesAdj[#Headers],0))/Millions -> 862
C9: OperatingIncome | D9: =INDEX(FundiesAdj[],MATCH(D$1,FundiesAdj[Ticker],0),MATCH("OperatingIncomeLoss",FundiesAdj[#Headers],0))/Millions -> 66288 | E9: =INDEX(FundiesAdj[],MATCH(E$1,FundiesAdj[Ticker],0),MATCH("OperatingIncomeLoss",FundiesAdj[#Headers],0))/Millions -> -237.8 | F9: =INDEX(FundiesAdj[],MATCH(F$1,FundiesAdj[Ticker],0),MATCH("OperatingIncomeLoss",FundiesAdj[#Headers],0))/Millions -> 32671 | G9: =INDEX(FundiesAdj[],MATCH(G$1,FundiesAdj[Ticker],0),MATCH("OperatingIncomeLoss",FundiesAdj[#Headers],0))/Millions -> 1994
C10: EBITDA | D10: =IF(D11<>0,D9+D11,"N/A") -> 77344 | E10: =IF(E11<>0,E9+E11,"N/A") -> -157.8 | F10: 39533 | G10: 3564
C11: DepreciationDepletionAndAmmortisation | D11: =INDEX(FundiesAdj[],MATCH(D$1,FundiesAdj[Ticker],0),MATCH($C11,FundiesAdj[#Headers],0))/Millions -> 11056 | E11: =INDEX(FundiesAdj[],MATCH(E$1,FundiesAdj[Ticker],0),MATCH($C11,FundiesAdj[#Headers],0))/Millions -> 80 | F11: =INDEX(FundiesAdj[],MATCH(F$1,FundiesAdj[Ticker],0),MATCH($C11,FundiesAdj[#Headers],0))/Millions -> 6862 | G11: =INDEX(FundiesAdj[],MATCH(G$1,FundiesAdj[Ticker],0),MATCH($C11,FundiesAdj[#Headers],0))/Millions -> 1570
B14: Balance Sheet
C15: CashAndCashEquivalents | D15: =INDEX(FundiesAdj[],MATCH(D$1,FundiesAdj[Ticker],0),MATCH($C15,FundiesAdj[#Headers],0))/Millions -> 39789 | E15: =INDEX(FundiesAdj[],MATCH(E$1,FundiesAdj[Ticker],0),MATCH($C15,FundiesAdj[#Headers],0))/Millions -> 635 | F15: =INDEX(FundiesAdj[],MATCH(F$1,FundiesAdj[Ticker],0),MATCH($C15,FundiesAdj[#Headers],0))/Millions -> 17954 | G15: =INDEX(FundiesAdj[],MATCH(G$1,FundiesAdj[Ticker],0),MATCH($C15,FundiesAdj[#Headers],0))/Millions -> 19384
C16: AccountsReceivableNetCurrent | D16: =INDEX(FundiesAdj[],MATCH(D$1,FundiesAdj[Ticker],0),MATCH($C16,FundiesAdj[#Headers],0))/Millions -> 16120 | E16: =INDEX(FundiesAdj[],MATCH(E$1,FundiesAdj[Ticker],0),MATCH($C16,FundiesAdj[#Headers],0))/Millions -> 105.3 | F16: =INDEX(FundiesAdj[],MATCH(F$1,FundiesAdj[Ticker],0),MATCH($C16,FundiesAdj[#Headers],0))/Millions -> 11330 | G16: =INDEX(FundiesAdj[],MATCH(G$1,FundiesAdj[Ticker],0),MATCH($C16,FundiesAdj[#Headers],0))/Millions -> 1886
C17: OtherAssetsCurrent | D17: =D18-D15 -> 103924 | E17: =E18-E15 -> 916.2 | F17: 57716 | G17: 7333
C18: AssetsCurrent | D18: =INDEX(FundiesAdj[],MATCH(D$1,FundiesAdj[Ticker],0),MATCH($C18,FundiesAdj[#Headers],0))/Millions -> 143713 | E18: =INDEX(FundiesAdj[],MATCH(E$1,FundiesAdj[Ticker],0),MATCH($C18,FundiesAdj[#Headers],0))/Millions -> 1551.2 | F18: =INDEX(FundiesAdj[],MATCH(F$1,FundiesAdj[Ticker],0),MATCH($C18,FundiesAdj[#Headers],0))/Millions -> 75670 | G18: =INDEX(FundiesAdj[],MATCH(G$1,FundiesAdj[Ticker],0),MATCH($C18,FundiesAdj[#Headers],0))/Millions -> 26717
C19: PP&E | D19: =INDEX(FundiesAdj[],MATCH(D$1,FundiesAdj[Ticker],0),MATCH($C19,FundiesAdj[#Headers],0))/Millions -> 36766 | E19: =INDEX(FundiesAdj[],MATCH(E$1,FundiesAdj[Ticker],0),MATCH($C19,FundiesAdj[#Headers],0))/Millions -> 201.2 | F19: =INDEX(FundiesAdj[],MATCH(F$1,FundiesAdj[Ticker],0),MATCH($C19,FundiesAdj[#Headers],0))/Millions -> 45633 | G19: =INDEX(FundiesAdj[],MATCH(G$1,FundiesAdj[Ticker],0),MATCH($C19,FundiesAdj[#Headers],0))/Millions -> 12747
C20: Other LT Assets | D20: =D21-D18-D19 -> 143409 | E20: =E21-E18-E19 -> 720.2 | F20: 38013 | G20: 12684
C21: Assets | D21: =INDEX(FundiesAdj[],MATCH(D$1,FundiesAdj[Ticker],0),MATCH($C21,FundiesAdj[#Headers],0))/Millions -> 323888 | E21: =INDEX(FundiesAdj[],MATCH(E$1,FundiesAdj[Ticker],0),MATCH($C21,FundiesAdj[#Headers],0))/Millions -> 2472.6 | F21: =INDEX(FundiesAdj[],MATCH(F$1,FundiesAdj[Ticker],0),MATCH($C21,FundiesAdj[#Headers],0))/Millions -> 159316 | G21: =INDEX(FundiesAdj[],MATCH(G$1,FundiesAdj[Ticker],0),MATCH($C21,FundiesAdj[#Headers],0))/Millions -> 52148
B23: Liabilities
C24: ShortTermDebt | D24: =INDEX(FundiesAdj[],MATCH(D$1,FundiesAdj[Ticker],0),MATCH($C24,FundiesAdj[#Headers],0))/Millions -> 8773 | E24: =INDEX(FundiesAdj[],MATCH(E$1,FundiesAdj[Ticker],0),MATCH($C24,FundiesAdj[#Headers],0))/Millions -> 121.7 | F24: =INDEX(FundiesAdj[],MATCH(F$1,FundiesAdj[Ticker],0),MATCH($C24,FundiesAdj[#Headers],0))/Millions -> 0 | G24: =INDEX(FundiesAdj[],MATCH(G$1,FundiesAdj[Ticker],0),MATCH($C24,FundiesAdj[#Headers],0))/Millions -> 1758
C25: AccountsPayableCurrent | D25: =INDEX(FundiesAdj[],MATCH(D$1,FundiesAdj[Ticker],0),MATCH($C25,FundiesAdj[#Headers],0))/Millions -> 42296 | E25: =INDEX(FundiesAdj[],MATCH(E$1,FundiesAdj[Ticker],0),MATCH($C25,FundiesAdj[#Headers],0))/Millions -> 341.8 | F25: =INDEX(FundiesAdj[],MATCH(F$1,FundiesAdj[Ticker],0),MATCH($C25,FundiesAdj[#Headers],0))/Millions -> 1331 | G25: =INDEX(FundiesAdj[],MATCH(G$1,FundiesAdj[Ticker],0),MATCH($C25,FundiesAdj[#Headers],0))/Millions -> 6051
C26: DeferredRevenueCurrent | D26: =INDEX(FundiesAdj[],MATCH(D$1,FundiesAdj[Ticker],0),MATCH($C26,FundiesAdj[#Headers],0))/Millions -> 6643 | E26: =INDEX(FundiesAdj[],MATCH(E$1,FundiesAdj[Ticker],0),MATCH($C26,FundiesAdj[#Headers],0))/Millions -> 348.2 | F26: =INDEX(FundiesAdj[],MATCH(F$1,FundiesAdj[Ticker],0),MATCH($C26,FundiesAdj[#Headers],0))/Millions -> 382 | G26: =INDEX(FundiesAdj[],MATCH(G$1,FundiesAdj[Ticker],0),MATCH($C26,FundiesAdj[#Headers],0))/Millions -> 1458
C27: OtherCurrentLiabilities(calculated) | D27: =+D28-D24-D25-D26 -> 47680 | E27: =+E28-E24-E25-E26 -> 531 | F27: =+F28-F24-F25-F26 -> 13268 | G27: =+G28-G24-G25-G26 -> 4981
C28: LiabilitiesCurrent | D28: =INDEX(FundiesAdj[],MATCH(D$1,FundiesAdj[Ticker],0),MATCH($C28,FundiesAdj[#Headers],0))/Millions -> 105392 | E28: =INDEX(FundiesAdj[],MATCH(E$1,FundiesAdj[Ticker],0),MATCH($C28,FundiesAdj[#Headers],0))/Millions -> 1342.7 | F28: =INDEX(FundiesAdj[],MATCH(F$1,FundiesAdj[Ticker],0),MATCH($C28,FundiesAdj[#Headers],0))/Millions -> 14981 | G28: =INDEX(FundiesAdj[],MATCH(G$1,FundiesAdj[Ticker],0),MATCH($C28,FundiesAdj[#Headers],0))/Millions -> 14248
C29: LongTermDebt | D29: =INDEX(FundiesAdj[],MATCH(D$1,FundiesAdj[Ticker],0),MATCH($C29,FundiesAdj[#Headers],0))/Millions -> 0 | E29: =INDEX(FundiesAdj[],MATCH(E$1,FundiesAdj[Ticker],0),MATCH($C29,FundiesAdj[#Headers],0))/Millions -> 362.7 | F29: =INDEX(FundiesAdj[],MATCH(F$1,FundiesAdj[Ticker],0),MATCH($C29,FundiesAdj[#Headers],0))/Millions -> 0 | G29: =INDEX(FundiesAdj[],MATCH(G$1,FundiesAdj[Ticker],0),MATCH($C29,FundiesAdj[#Headers],0))/Millions -> 8462
C30: OtherLongTermLiabilities (calculated) | D30: =+D31-D28-D29 -> 153157 | E30: =+E31-E28-E29 -> 330.5 | F30: =+F31-F28-F29 -> 16045 | G30: =+G31-G28-G29 -> 5708
C31: Liabilities | D31: =INDEX(FundiesAdj[],MATCH(D$1,FundiesAdj[Ticker],0),MATCH($C31,FundiesAdj[#Headers],0))/Millions -> 258549 | E31: =INDEX(FundiesAdj[],MATCH(E$1,FundiesAdj[Ticker],0),MATCH($C31,FundiesAdj[#Headers],0))/Millions -> 2035.9 | F31: =INDEX(FundiesAdj[],MATCH(F$1,FundiesAdj[Ticker],0),MATCH($C31,FundiesAdj[#Headers],0))/Millions -> 31026 | G31: =INDEX(FundiesAdj[],MATCH(G$1,FundiesAdj[Ticker],0),MATCH($C31,FundiesAdj[#Headers],0))/Millions -> 28418
C33: StockholdersEquity | D33: =INDEX(FundiesAdj[],MATCH(D$1,FundiesAdj[Ticker],0),MATCH($C33,FundiesAdj[#Headers],0))/Millions -> 65339 | E33: =INDEX(FundiesAdj[],MATCH(E$1,FundiesAdj[Ticker],0),MATCH($C33,FundiesAdj[#Headers],0))/Millions -> 436.7 | F33: =INDEX(FundiesAdj[],MATCH(F$1,FundiesAdj[Ticker],0),MATCH($C33,FundiesAdj[#Headers],0))/Millions -> 128290 | G33: =INDEX(FundiesAdj[],MATCH(G$1,FundiesAdj[Ticker],0),MATCH($C33,FundiesAdj[#Headers],0))/Millions -> 22225
C34: LiabilitiesAndStockholdersEquity | D34: =INDEX(FundiesAdj[],MATCH(D$1,FundiesAdj[Ticker],0),MATCH($C34,FundiesAdj[#Headers],0))/Millions -> 323888 | E34: =INDEX(FundiesAdj[],MATCH(E$1,FundiesAdj[Ticker],0),MATCH($C34,FundiesAdj[#Headers],0))/Millions -> 2472.6 | F34: =INDEX(FundiesAdj[],MATCH(F$1,FundiesAdj[Ticker],0),MATCH($C34,FundiesAdj[#Headers],0))/Millions -> 159316 | G34: =INDEX(FundiesAdj[],MATCH(G$1,FundiesAdj[Ticker],0),MATCH($C34,FundiesAdj[#Headers],0))/Millions -> 52148
B36: CashFlow
C37: NetCashProvidedByUsedInFinancingActivities | D37: =INDEX(FundiesAdj[],MATCH(D$1,FundiesAdj[Ticker],0),MATCH($C37,FundiesAdj[#Headers],0))/Millions -> -86820 | E37: =INDEX(FundiesAdj[],MATCH(E$1,FundiesAdj[Ticker],0),MATCH($C37,FundiesAdj[#Headers],0))/Millions -> -55.4 | F37: =INDEX(FundiesAdj[],MATCH(F$1,FundiesAdj[Ticker],0),MATCH($C37,FundiesAdj[#Headers],0))/Millions -> -10292 | G37: =INDEX(FundiesAdj[],MATCH(G$1,FundiesAdj[Ticker],0),MATCH($C37,FundiesAdj[#Headers],0))/Millions -> 9973
C38: NetCashProvidedByUsedInInvestingActivities | D38: =INDEX(FundiesAdj[],MATCH(D$1,FundiesAdj[Ticker],0),MATCH($C38,FundiesAdj[#Headers],0))/Millions -> -4289 | E38: =INDEX(FundiesAdj[],MATCH(E$1,FundiesAdj[Ticker],0),MATCH($C38,FundiesAdj[#Headers],0))/Millions -> 36.9 | F38: =INDEX(FundiesAdj[],MATCH(F$1,FundiesAdj[Ticker],0),MATCH($C38,FundiesAdj[#Headers],0))/Millions -> -30059 | G38: =INDEX(FundiesAdj[],MATCH(G$1,FundiesAdj[Ticker],0),MATCH($C38,FundiesAdj[#Headers],0))/Millions -> -3132
C39: NetCashProvidedByUsedInOperatingActivities | D39: =INDEX(FundiesAdj[],MATCH(D$1,FundiesAdj[Ticker],0),MATCH($C39,FundiesAdj[#Headers],0))/Millions -> 80674 | E39: =INDEX(FundiesAdj[],MATCH(E$1,FundiesAdj[Ticker],0),MATCH($C39,FundiesAdj[#Headers],0))/Millions -> 123.7 | F39: =INDEX(FundiesAdj[],MATCH(F$1,FundiesAdj[Ticker],0),MATCH($C39,FundiesAdj[#Headers],0))/Millions -> 38747 | G39: =INDEX(FundiesAdj[],MATCH(G$1,FundiesAdj[Ticker],0),MATCH($C39,FundiesAdj[#Headers],0))/Millions -> 5943
B42: Ratios
C43: EBIT Margin | D43: =+D9/D4 -> 0.2414731435 | E43: =+E9/E4 -> -0.04672089277 | F43: =+F9/F4 -> 0.3800500204 | G43: =+G9/G4 -> 0.06322932522
C44: Net Margin | D44: =+D7/D4 -> 0.2091361128 | E44: =+E7/E4 -> -0.04230028685 | F44: =+F7/F4 -> 0.3390449602 | G44: =+G7/G4 -> 0.02733384069
C45: Return on Equity | D45: =D7/D33 -> 0.8786635853 | E45: =E7/E33 -> -0.4930158003 | F45: =F7/F33 -> 0.2271884013 | G45: 0.03878515186
C46: Days Revenue Outstanding (DRO/DSO) | D46: =+D16/D4*365 -> 21.43343715 | E46: =+E16/E4*365 -> 7.551279029 | F46: =+F16/F4*365 -> 48.10620601 | G46: =+G16/G4*365 -> 21.8287037
B48: Valuation
C49: Latest Price | D49: =VALUE(_xlfn.WEBSERVICE(Stock&D1&"/quote/latestPrice"&"?token="&my_token)) ->  | E49: =VALUE(_xlfn.WEBSERVICE(Stock&E1&"/quote/latestPrice"&"?token="&my_token)) ->  | F49: =VALUE(_xlfn.WEBSERVICE(Stock&F1&"/quote/latestPrice"&"?token="&my_token)) ->  | G49: =VALUE(_xlfn.WEBSERVICE(Stock&G1&"/quote/latestPrice"&"?token="&my_token)) -> 
C50: =C58 -> WeightedAverageNumberOfSharesOutstandingBasic | D50: =D58 -> 17352.119 | E50: =E58 -> 65 | F50: =F58 -> 2851 | G50: =G58 -> 933
C51: Market Cap (current),bn | D51: =VALUE(_xlfn.WEBSERVICE(Stock&D$1&"/stats/"&"marketcap"&"?token="&my_token))/1000000000 ->  | E51: =VALUE(_xlfn.WEBSERVICE(Stock&E$1&"/stats/"&"marketcap"&"?token="&my_token))/1000000000 ->  | F51: =VALUE(_xlfn.WEBSERVICE(Stock&F$1&"/stats/"&"marketcap"&"?token="&my_token))/1000000000 ->  | G51: =VALUE(_xlfn.WEBSERVICE(Stock&G$1&"/stats/"&"marketcap"&"?token="&my_token))/1000000000 -> 
C52: Enterprise Value (bn) | D52: =(D51*1000+D29+D24-D15)/1000 ->  | E52: =(E51*1000+E29+E24-E15)/1000 ->  | F52: =(F51*1000+F29+F24-F15)/1000 ->  | G52: =(G51*1000+G29+G24-G15)/1000 -> 
C53: P/E | D53: =+D49/D61 ->  | E53: =+E49/E61 ->  | F53: =+F49/F61 ->  | G53: =+G49/G61 -> 
C54: EV/EBITDA | D54: =+D52*1000/D10 ->  | E54: =+E52*1000/E10 ->  | F54: =+F52*1000/F10 ->  | G54: =+G52*1000/G10 -> 
C55: P/BV | D55: =D51/D33*1000 ->  | E55: =E51/E33*1000 ->  | F55: =F51/F33*1000 ->  | G55: =G51/G33*1000 -> 
B57: Share Data (from filing)
C58: WeightedAverageNumberOfSharesOutstandingBasic | D58: =IF(INDEX(FundiesAdj[],MATCH(D$1,FundiesAdj[Ticker],0),MATCH($C58,FundiesAdj[#Headers],0))/Millions>0,INDEX(FundiesAdj[],MATCH(D$1,FundiesAdj[Ticker],0),MATCH($C58,FundiesAdj[#Headers],0))/Millions,D7/D60) -> 17352.119 | E58: =IF(INDEX(FundiesAdj[],MATCH(E$1,FundiesAdj[Ticker],0),MATCH($C58,FundiesAdj[#Headers],0))/Millions>0,INDEX(FundiesAdj[],MATCH(E$1,FundiesAdj[Ticker],0),MATCH($C58,FundiesAdj[#Headers],0))/Millions,E7/E60) -> 65 | F58: =IF(INDEX(FundiesAdj[],MATCH(F$1,FundiesAdj[Ticker],0),MATCH($C58,FundiesAdj[#Headers],0))/Millions>0,INDEX(FundiesAdj[],MATCH(F$1,FundiesAdj[Ticker],0),MATCH($C58,FundiesAdj[#Headers],0))/Millions,F7/F60) -> 2851 | G58: =IF(INDEX(FundiesAdj[],MATCH(G$1,FundiesAdj[Ticker],0),MATCH($C58,FundiesAdj[#Headers],0))/Millions>0,INDEX(FundiesAdj[],MATCH(G$1,FundiesAdj[Ticker],0),MATCH($C58,FundiesAdj[#Headers],0))/Millions,G7/G60) -> 933
C59: WeightedAverageNumberOfDilutedSharesOutstanding | D59: =INDEX(FundiesAdj[],MATCH(D$1,FundiesAdj[Ticker],0),MATCH($C59,FundiesAdj[#Headers],0))/Millions -> 17528.214 | E59: =INDEX(FundiesAdj[],MATCH(E$1,FundiesAdj[Ticker],0),MATCH($C59,FundiesAdj[#Headers],0))/Millions -> 65 | F59: =INDEX(FundiesAdj[],MATCH(F$1,FundiesAdj[Ticker],0),MATCH($C59,FundiesAdj[#Headers],0))/Millions -> 2888 | G59: =INDEX(FundiesAdj[],MATCH(G$1,FundiesAdj[Ticker],0),MATCH($C59,FundiesAdj[#Headers],0))/Millions -> 1083
C60: EarningsPerShareBasic | D60: =INDEX(FundiesAdj[],MATCH(D$1,FundiesAdj[Ticker],0),MATCH($C60,FundiesAdj[#Headers],0)) -> 3.31 | E60: =INDEX(FundiesAdj[],MATCH(E$1,FundiesAdj[Ticker],0),MATCH($C60,FundiesAdj[#Headers],0)) -> -3.31 | F60: =INDEX(FundiesAdj[],MATCH(F$1,FundiesAdj[Ticker],0),MATCH($C60,FundiesAdj[#Headers],0)) -> 10.22 | G60: =INDEX(FundiesAdj[],MATCH(G$1,FundiesAdj[Ticker],0),MATCH($C60,FundiesAdj[#Headers],0)) -> 0.74
C61: EarningsPerShareDiluted | D61: =INDEX(FundiesAdj[],MATCH(D$1,FundiesAdj[Ticker],0),MATCH($C61,FundiesAdj[#Headers],0)) -> 3.28 | E61: =INDEX(FundiesAdj[],MATCH(E$1,FundiesAdj[Ticker],0),MATCH($C61,FundiesAdj[#Headers],0)) -> -3.31 | F61: =INDEX(FundiesAdj[],MATCH(F$1,FundiesAdj[Ticker],0),MATCH($C61,FundiesAdj[#Headers],0)) -> 10.09 | G61: =INDEX(FundiesAdj[],MATCH(G$1,FundiesAdj[Ticker],0),MATCH($C61,FundiesAdj[#Headers],0)) -> 0.64
B63: Reference Data
C64: dateFiled | D64: =INDEX(FundiesAdj[],MATCH(D$1,FundiesAdj[Ticker],0),MATCH($C64,FundiesAdj[#Headers],0)) -> 2020-10-30 | E64: =INDEX(FundiesAdj[],MATCH(E$1,FundiesAdj[Ticker],0),MATCH($C64,FundiesAdj[#Headers],0)) -> 2021-03-23 | F64: =INDEX(FundiesAdj[],MATCH(F$1,FundiesAdj[Ticker],0),MATCH($C64,FundiesAdj[#Headers],0)) -> 2021-01-28 | G64: =INDEX(FundiesAdj[],MATCH(G$1,FundiesAdj[Ticker],0),MATCH($C64,FundiesAdj[#Headers],0)) -> 2021-02-08
C65: periodEnd | D65: =INDEX(FundiesAdj[],MATCH(D$1,FundiesAdj[Ticker],0),MATCH($C65,FundiesAdj[#Headers],0)) -> 2020-09-26 | E65: =INDEX(FundiesAdj[],MATCH(E$1,FundiesAdj[Ticker],0),MATCH($C65,FundiesAdj[#Headers],0)) -> 2021-01-30 | F65: =INDEX(FundiesAdj[],MATCH(F$1,FundiesAdj[Ticker],0),MATCH($C65,FundiesAdj[#Headers],0)) -> 2020-12-31 | G65: =INDEX(FundiesAdj[],MATCH(G$1,FundiesAdj[Ticker],0),MATCH($C65,FundiesAdj[#Headers],0)) -> 2020-12-31
C66: subkey | D66: =INDEX(FundiesAdj[],MATCH(D$1,FundiesAdj[Ticker],0),MATCH($C66,FundiesAdj[#Headers],0)) -> 10-K | E66: =INDEX(FundiesAdj[],MATCH(E$1,FundiesAdj[Ticker],0),MATCH($C66,FundiesAdj[#Headers],0)) -> 10-K | F66: =INDEX(FundiesAdj[],MATCH(F$1,FundiesAdj[Ticker],0),MATCH($C66,FundiesAdj[#Headers],0)) -> 10-K | G66: =INDEX(FundiesAdj[],MATCH(G$1,FundiesAdj[Ticker],0),MATCH($C66,FundiesAdj[#Headers],0)) -> 10-K
C67: date | D67: =INDEX(FundiesAdj[],MATCH(D$1,FundiesAdj[Ticker],0),MATCH($C67,FundiesAdj[#Headers],0)) -> 2020-10-30 | E67: =INDEX(FundiesAdj[],MATCH(E$1,FundiesAdj[Ticker],0),MATCH($C67,FundiesAdj[#Headers],0)) -> 2021-03-23 | F67: =INDEX(FundiesAdj[],MATCH(F$1,FundiesAdj[Ticker],0),MATCH($C67,FundiesAdj[#Headers],0)) -> 2021-01-28 | G67: =INDEX(FundiesAdj[],MATCH(G$1,FundiesAdj[Ticker],0),MATCH($C67,FundiesAdj[#Headers],0)) -> 2021-02-08
C68: updated | D68: =INDEX(FundiesAdj[],MATCH(D$1,FundiesAdj[Ticker],0),MATCH($C68,FundiesAdj[#Headers],0)) -> 2021-02-11 | E68: =INDEX(FundiesAdj[],MATCH(E$1,FundiesAdj[Ticker],0),MATCH($C68,FundiesAdj[#Headers],0)) -> 2021-03-24 | F68: =INDEX(FundiesAdj[],MATCH(F$1,FundiesAdj[Ticker],0),MATCH($C68,FundiesAdj[#Headers],0)) -> 2021-02-11 | G68: =INDEX(FundiesAdj[],MATCH(G$1,FundiesAdj[Ticker],0),MATCH($C68,FundiesAdj[#Headers],0)) -> 2021-02-11
C69: updated | D69: =INDEX(FundiesAdj[],MATCH(D$1,FundiesAdj[Ticker],0),MATCH($C69,FundiesAdj[#Headers],0)) -> 2021-02-11 | E69: =INDEX(FundiesAdj[],MATCH(E$1,FundiesAdj[Ticker],0),MATCH($C69,FundiesAdj[#Headers],0)) -> 2021-03-24 | F69: =INDEX(FundiesAdj[],MATCH(F$1,FundiesAdj[Ticker],0),MATCH($C69,FundiesAdj[#Headers],0)) -> 2021-02-11 | G69: =INDEX(FundiesAdj[],MATCH(G$1,FundiesAdj[Ticker],0),MATCH($C69,FundiesAdj[#Headers],0)) -> 2021-02-11

Sheet Ticker Search
D1: search
A2: Token | B2: Base_Url | C2: string | D2: Full_URL
A3: =+my_token -> 0 | B3: https://cloud.iexapis.com/stable/search/ | C3: =C8 -> SONO | D3: =+search[[#This Row],[Base_Url]]&search[[#This Row],[string]]&"?token="&search[[#This Row],[Token]] -> https://cloud.iexapis.com/stable/search/SONO?token=0
B5: Powerquery: | D5: = Json.Document(Web.Contents(Excel.CurrentWorkbook(){[Name="search"]}[Content]{0}[Full_URL]))
A6: Only works with a paid account
A8: Co name or ticker ------> | C8: SONO
A10: Results
A12: Recommended | B12: symbol | C12: cik | D12: securityName | E12: securityType | F12: region | G12: exchange | H12: sector | I12: currency
B13: PHBA-GB | C13: 0001450681 | D13: Sonova Holding AG - ADR | E13: ad | F13: DE | G13: BER | H13: Manufacturing | I13: EUR
B14: 0QPY-LN | C14: 0001450681 | D14: Sonova Holding AG | E14: cs | F14: GB | G14: LON | H14: Manufacturing | I14: CHF
B15: PHBA-GS | C15: 0001450681 | D15: Sonova Holding AG - ADR | E15: ad | F15: DE | G15: STU | H15: Manufacturing | I15: EUR
B16: PHBA-GF | C16: 0001450681 | D16: Sonova Holding AG - ADR | E16: ad | F16: DE | G16: FRA | H16: Manufacturing | I16: EUR
B17: SOON-SE | C17: 0001450681 | D17: Sonova Holding AG | E17: cs | F17: CH | G17: SWX | H17: Manufacturing | I17: CHF
B18: SONVF | C18: 0001450681 | D18: Sonova Holding AG | E18: cs | F18: US | G18: PINX | H18: Manufacturing | I18: USD
B19: 066910-KQ | D19: Sonokong Co Ltd | E19: cs | F19: KR | G19: KRKSDQ | H19: Manufacturing | I19: KRW
B20: SOONE-SE | C20: 0001450681 | D20: Sonova Holding AG (Buyback) | E20: cs | F20: CH | G20: SWX | H20: Manufacturing | I20: CHF
B21: SONVY | C21: 0001450681 | D21: Sonova Holding AG - ADR | E21: ad | F21: US | G21: PINX | H21: Manufacturing | I21: USD

Sheet CompanyData (hidden)
A1: symbol | B1: companyName | C1: exchange | D1: industry | E1: website | F1: description | G1: CEO | H1: securityName | I1: issueType | J1: sector | K1: primarySicCode | L1: employees | M1: tags | N1: address | O1: address2 | P1: state | Q1: city | R1: zip | S1: country | T1: phone
A2: AAPL | B2: Apple Inc | C2: NASDAQ/NGS (GLOBAL SELECT MARKET) | D2: Electronic Computer Manufacturing | E2: https://www.apple.com/ | F2: Apple Inc. is an American multinational technology company headquartered in Cupertino, California, that designs, develops, and sells consumer electronics, computer software, and online services. It is considered one of the Big Five companies in the U.S. information technology industry, along with Amazon, Google, Microsoft, and Facebook. Its hardware products include the iPhone smartphone, the iPad tablet computer, the Mac personal computer, the iPod portable media player, the Apple Watch smartwatch, the Apple TV digital media player, the AirPods wireless earbuds, the AirPods Max headphones, and the HomePod smart speaker line. Apple's software includes iOS, iPadOS, macOS, watchOS, and tvOS operating systems, the iTunes media player, the Safari web browser, the Shazam music identifier, and the iLife and iWork creativity and productivity suites, as well as professional applications like Final Cut Pro X, Logic Pro, and Xcode. Its online services include the iTunes Store, the iOS App Store, Mac App Store, Apple Arcade, Apple Music, Apple TV+, iMessage, and iCloud. Other services include Apple Store, Genius Bar, AppleCare, Apple Pay, Apple Pay Cash, and Apple Card. Apple was founded by Steve Jobs, Steve Wozniak, and Ronald Wayne in April 1976 to develop and sell Wozniak's Apple I personal computer, though Wayne sold his share back within 12 days. It was incorporated as Apple Computer, Inc., in January 1977, and sales of its computers, including the Apple I and Apple II, grew quickly. | G2: Timothy Cook | H2: Apple Inc | I2: cs | J2: Manufacturing | K2: 3571 | L2: 147000 | M2: [List] | N2: 1 Apple Park Way | P2: California | Q2: Cupertino | R2: 95014-0642 | S2: US | T2: 14089961010
A3: FB | B3: Facebook Inc | C3: NASDAQ/NGS (GLOBAL SELECT MARKET) | D3: Data Processing, Hosting, and Related Services | E3: https://www.facebook.com | F3: Founded in 2004, Facebook's mission is to give people the power to build community and bring the world closer together. People use Facebook's apps and technologies to connect with friends and family, find communities and grow businesses. | G3: Mark Zuckerberg | H3: Facebook Inc - Class A | I3: cs | J3: Information | K3: 7374 | L3: 52534 | M3: [List] | N3: 1601 Willow Rd | P3: California | Q3: Menlo Park | R3: 94025-1452 | S3: US | T3: 16506187714
A4: GME | B4: Gamestop Corporation | C4: NEW YORK STOCK EXCHANGE, INC. | D4: Electronics Stores | E4: http://news.gamestop.com/ | G4: George Sherman | H4: Gamestop Corporation - Class A | I4: cs | J4: Retail Trade | K4: 5734 | M4: [List] | N4: 625 Westport Pkwy | P4: Texas | Q4: Grapevine | R4: 76051-6740 | S4: US | T4: 18174242000
A5: TSLA | B5: Tesla Inc | C5: NASDAQ/NGS (GLOBAL SELECT MARKET) | D5: Automobile Manufacturing | E5: https://www.tesla.com/ | F5: Tesla’s mission is to accelerate the world’s transition to sustainable energy. Since its founding in 2003, Tesla has broken new barriers in developing high-performance automobiles that are not only the world’s best and highest-selling pure electric vehicles—with long range and absolutely no tailpipe emissions—but also the safest, highest-rated cars on the road in the world. Beyond the flagship Model S sedan and the falcon-winged door Model X sports utility vehicle, Tesla also offers a smaller, simpler and more affordable mid-sized sedan, Model 3, which it is expected will truly propel electric vehicles into the mainstream. In addition, with the opening of the Gigafactory and the acquisition of SolarCity, Tesla now offers a full suite of energy products that incorporates solar, storage, and grid services. As the world’s only fully integrated sustainable energy company, Tesla is at the vanguard of the world’s inevitable shift towards a sustainable energy platform. | G5: Elon Musk | H5: Tesla Inc | I5: cs | J5: Manufacturing | K5: 3711 | L5: 48016 | M5: [List] | N5: 3500 Deer Creek Rd | P5: California | Q5: Palo Alto | R5: 94304-1317 | S5: US | T5: 16506815000

Sheet S&P 500
A1: Symbol | B1: Security | C1: Headquarters Location | D1: Date first added | E1: CIK | F1: Founded
A2: A | B2: Agilent Technologies | C2: Santa Clara, California | D2: 2000-06-05 | E2: 1090872 | F2: 1999
A3: AAL | B3: American Airlines Group | C3: Fort Worth, Texas | D3: 2015-03-23 | E3: 6201 | F3: 1934
A4: AAP | B4: Advance Auto Parts | C4: Raleigh, North Carolina | D4: 2015-07-09 | E4: 1158449 | F4: 1932
A5: AAPL | B5: Apple Inc. | C5: Cupertino, California | D5: 1982-11-30 | E5: 320193 | F5: 1977
A6: ABBV | B6: AbbVie Inc. | C6: North Chicago, Illinois | D6: 2012-12-31 | E6: 1551152 | F6: 2013 (1888)
A7: ABC | B7: AmerisourceBergen | C7: Chesterbrook, Pennsylvania | D7: 2001-08-30 | E7: 1140859 | F7: 1985
A8: ABMD | B8: Abiomed | C8: Danvers, Massachusetts | D8: 2018-05-31 | E8: 815094 | F8: 1981
A9: ABT | B9: Abbott Laboratories | C9: North Chicago, Illinois | D9: 1964-03-31 | E9: 1800 | F9: 1888
A10: ACN | B10: Accenture | C10: Dublin, Ireland | D10: 2011-07-06 | E10: 1467373 | F10: 1989
A11: ADBE | B11: Adobe Inc. | C11: San Jose, California | D11: 1997-05-05 | E11: 796343 | F11: 1982
A12: ADI | B12: Analog Devices, Inc. | C12: Norwood, Massachusetts | D12: 1999-10-12 | E12: 6281 | F12: 1965
A13: ADM | B13: Archer-Daniels-Midland Co | C13: Chicago, Illinois | D13: 1981-07-29 | E13: 7084 | F13: 1902
A14: ADP | B14: Automatic Data Processing | C14: Roseland, New Jersey | D14: 1981-03-31 | E14: 8670 | F14: 1949
A15: ADSK | B15: Autodesk Inc. | C15: San Rafael, California | D15: 1989-12-01 | E15: 769397 | F15: 1982
A16: AEE | B16: Ameren Corp | C16: St. Louis, Missouri | D16: 1991-09-19 | E16: 1002910 | F16: 1902
A17: AEP | B17: American Electric Power | C17: Columbus, Ohio | D17: 1957-03-04 | E17: 4904 | F17: 1906
A18: AES | B18: AES Corp | C18: Arlington, Virginia | D18: 1998-10-02 | E18: 874761 | F18: 1981
A19: AFL | B19: Aflac | C19: Columbus, Georgia | D19: 1999-05-28 | E19: 4977 | F19: 1955
A20: AIG | B20: American International Group | C20: New York, New York | D20: 1980-03-31 | E20: 5272 | F20: 1919
A21: AIZ | B21: Assurant | C21: New York, New York | D21: 2007-04-10 | E21: 1267238 | F21: 1892
A22: AJG | B22: Arthur J. Gallagher & Co. | C22: Rolling Meadows, Illinois | D22: 2016-05-31 | E22: 354190 | F22: 1927
A23: AKAM | B23: Akamai Technologies | C23: Cambridge, Massachusetts | D23: 2007-07-12 | E23: 1086222 | F23: 1998
A24: ALB | B24: Albemarle Corporation | C24: Charlotte, North Carolina | D24: 2016-07-01 | E24: 915913 | F24: 1994
A25: ALGN | B25: Align Technology | C25: San Jose, California | D25: 2017-06-19 | E25: 1097149 | F25: 1997
A26: ALK | B26: Alaska Air Group | C26: Seattle, Washington | D26: 2016-05-13 | E26: 766421 | F26: 1985
A27: ALL | B27: Allstate Corp | C27: Northfield Township, Illinois | D27: 1995-07-13 | E27: 899051 | F27: 1931
A28: ALLE | B28: Allegion | C28: Dublin, Ireland | D28: 2013-12-02 | E28: 1579241 | F28: 1908
A29: ALXN | B29: Alexion Pharmaceuticals | C29: Boston, Massachusetts | D29: 2012-05-25 | E29: 899866 | F29: 1992
A30: AMAT | B30: Applied Materials Inc. | C30: Santa Clara, California | D30: 1995-03-16 | E30: 6951 | F30: 1967
A31: AMCR | B31: Amcor plc | C31: Warmley, Bristol, United Kingdom | D31: 2019-06-07 | E31: 1748790 | F31: 2019 (1860)
A32: AMD | B32: Advanced Micro Devices | C32: Santa Clara, California | D32: 2017-03-20 | E32: 2488 | F32: 1969
A33: AME | B33: Ametek | C33: Berwyn, Pennsylvania | D33: 2013-09-23 | E33: 1037868 | F33: 1930
A34: AMGN | B34: Amgen Inc. | C34: Thousand Oaks, California | D34: 1992-01-02 | E34: 318154 | F34: 1980
A35: AMP | B35: Ameriprise Financial | C35: Minneapolis, Minnesota | D35: 2005-10-03 | E35: 820027 | F35: 1894
A36: AMT | B36: American Tower Corp. | C36: Boston, Massachusetts | D36: 2007-11-19 | E36: 1053507 | F36: 1995
A37: AMZN | B37: Amazon.com Inc. | C37: Seattle, Washington | D37: 2005-11-18 | E37: 1018724 | F37: 1994
A38: ANET | B38: Arista Networks | C38: Santa Clara, California | D38: 2018-08-28 | E38: 1596532 | F38: 2004
A39: ANSS | B39: ANSYS, Inc. | C39: Canonsburg, Pennsylvania | D39: 2017-06-19 | E39: 1013462 | F39: 1969
A40: ANTM | B40: Anthem | C40: Indianapolis, Indiana | D40: 2002-07-25 | E40: 1156039 | F40: 2014 (1946)
A41: AON | B41: Aon plc | C41: London, United Kingdom | D41: 1996-04-23 | E41: 315293 | F41: 1982 (1919)
A42: AOS | B42: A.O. Smith Corp | C42: Milwaukee, Wisconsin | D42: 2017-07-26 | E42: 91142 | F42: 1916
A43: APA | B43: APA Corporation | C43: Houston, Texas | D43: 1997-07-28 | E43: 6769 | F43: 1954
A44: APD | B44: Air Products & Chemicals | C44: Allentown, Pennsylvania | D44: 1985-04-30 | E44: 2969 | F44: 1940
A45: APH | B45: Amphenol Corp | C45: Wallingford, Connecticut | D45: 2008-09-30 | E45: 820313 | F45: 1932
A46: APTV | B46: Aptiv PLC | C46: Dublin, Ireland | D46: 2012-12-24 | E46: 1521332 | F46: 1994
A47: ARE | B47: Alexandria Real Estate Equities | C47: Pasadena, California | D47: 2017-03-20 | E47: 1035443 | F47: 1994
A48: ATO | B48: Atmos Energy | C48: Dallas, Texas | D48: 2019-02-15 | E48: 731802 | F48: 1906
A49: ATVI | B49: Activision Blizzard | C49: Santa Monica, California | D49: 2015-08-31 | E49: 718877 | F49: 2008
A50: AVB | B50: AvalonBay Communities | C50: Arlington, Virginia | D50: 2007-01-10 | E50: 915912 | F50: 1978
A51: AVGO | B51: Broadcom Inc. | C51: San Jose, California | D51: 2014-05-08 | E51: 1730168 | F51: 1961
A52: AVY | B52: Avery Dennison Corp | C52: Glendale, California | D52: 1987-12-31 | E52: 8818 | F52: 1990
A53: AWK | B53: American Water Works | C53: Camden, New Jersey | D53: 2016-03-04 | E53: 1410636 | F53: 1886
A54: AXP | B54: American Express | C54: New York, New York | D54: 1976-06-30 | E54: 4962 | F54: 1850
A55: AZO | B55: AutoZone Inc | C55: Memphis, Tennessee | D55: 1997-01-02 | E55: 866787 | F55: 1979
A56: BA | B56: Boeing Company | C56: Chicago, Illinois | D56: 1957-03-04 | E56: 12927 | F56: 1916
A57: BAC | B57: Bank of America Corp | C57: Charlotte, North Carolina | D57: 1976-06-30 | E57: 70858 | F57: 1998 (1923 / 1874)
A58: BAX | B58: Baxter International Inc. | C58: Deerfield, Illinois | D58: 1972-09-30 | E58: 10456 | F58: 1931
A59: BBY | B59: Best Buy Co. Inc. | C59: Richfield, Minnesota | D59: 1999-06-29 | E59: 764478 | F59: 1966
A60: BDX | B60: Becton Dickinson | C60: Franklin Lakes, New Jersey | D60: 1972-09-30 | E60: 10795 | F60: 1897
A61: BEN | B61: Franklin Resources | C61: San Mateo, California | E61: 38777 | F61: 1947
A62: BF.B | B62: Brown-Forman Corp. | C62: Louisville, Kentucky | D62: 1982-10-31 | E62: 14693 | F62: 1870
A63: BIIB | B63: Biogen Inc. | C63: Cambridge, Massachusetts | D63: 2003-11-13 | E63: 875045 | F63: 1978
A64: BIO | B64: Bio-Rad Laboratories | C64: Hercules, California | D64: 2020-06-22 | E64: 12208 | F64: 1952
A65: BK | B65: The Bank of New York Mellon | C65: New York, New York | D65: 1995-03-31 | E65: 1390777 | F65: 1784
A66: BKNG | B66: Booking Holdings Inc | C66: Norwalk, Connecticut | D66: 2009-11-06 | E66: 1075531 | F66: 1996
A67: BKR | B67: Baker Hughes Co | C67: Houston, Texas | D67: 2017-07-07 | E67: 1701605 | F67: 2017
A68: BLK | B68: BlackRock | C68: New York, New York | D68: 2011-04-04 | E68: 1364742 | F68: 1988
A69: BLL | B69: Ball Corp | C69: Broomfield, Colorado | D69: 1984-10-31 | E69: 9389 | F69: 1880
A70: BMY | B70: Bristol-Myers Squibb | C70: New York, New York | D70: 1957-03-04 | E70: 14272 | F70: 1989
A71: BR | B71: Broadridge Financial Solutions | C71: Lake Success, New York | D71: 2018-06-18 | E71: 1383312 | F71: 1962
A72: BRK.B | B72: Berkshire Hathaway | C72: Omaha, Nebraska | D72: 2010-02-16 | E72: 1067983 | F72: 1839
A73: BSX | B73: Boston Scientific | C73: Marlborough, Massachusetts | D73: 1995-02-24 | E73: 885725 | F73: 1979
A74: BWA | B74: BorgWarner | C74: Auburn Hills, Michigan | D74: 2011-12-19 | E74: 908255 | F74: 1880
A75: BXP | B75: Boston Properties | C75: Boston, Massachusetts | D75: 2006-04-03 | E75: 1037540 | F75: 1970
A76: C | B76: Citigroup Inc. | C76: New York, New York | D76: 1988-05-31 | E76: 831001 | F76: 1998
A77: CAG | B77: Conagra Brands | C77: Chicago, Illinois | D77: 1983-08-31 | E77: 23217 | F77: 1919
A78: CAH | B78: Cardinal Health Inc. | C78: Dublin, Ohio | D78: 1997-05-27 | E78: 721371 | F78: 1971
A79: CARR | B79: Carrier Global | C79: Palm Beach Gardens, Florida | D79: 2020-04-03 | E79: 1783180 | F79: 2020 (1915)
A80: CAT | B80: Caterpillar Inc. | C80: Deerfield, Illinois | D80: 1957-03-04 | E80: 18230 | F80: 1925
A81: CB | B81: Chubb Limited | C81: Zurich, Switzerland | D81: 2010-07-15 | E81: 896159 | F81: 1985
A82: CBOE | B82: Cboe Global Markets | C82: Chicago, Illinois | D82: 2017-03-01 | E82: 1374310 | F82: 1973
A83: CBRE | B83: CBRE Group | C83: Dallas, Texas | D83: 2006-11-10 | E83: 1138118 | F83: 1906
A84: CCI | B84: Crown Castle | C84: Houston, Texas | D84: 2012-03-14 | E84: 1051470 | F84: 1994
A85: CCL | B85: Carnival Corp. | C85: Miami, Florida | D85: 1998-12-22 | E85: 815097 | F85: 1972
A86: CDNS | B86: Cadence Design Systems | C86: San Jose, California | D86: 2017-09-18 | E86: 813672 | F86: 1988
A87: CDW | B87: CDW | C87: Lincolnshire, Illinois | D87: 2019-09-23 | E87: 1402057 | F87: 1984
A88: CE | B88: Celanese | C88: Irving, Texas | D88: 2018-12-24 | E88: 1306830 | F88: 1918
A89: CERN | B89: Cerner | C89: North Kansas City, Missouri | D89: 2010-04-30 | E89: 804753 | F89: 1979
A90: CF | B90: CF Industries Holdings Inc | C90: Deerfield, Illinois | D90: 2008-08-27 | E90: 1324404 | F90: 1946
A91: CFG | B91: Citizens Financial Group | C91: Providence, Rhode Island | D91: 2016-01-29 | E91: 759944 | F91: 1828
A92: CHD | B92: Church & Dwight | C92: Ewing, New Jersey | D92: 2015-12-29 | E92: 313927 | F92: 1847
A93: CHRW | B93: C. H. Robinson Worldwide | C93: Eden Prairie, Minnesota | D93: 2007-03-02 | E93: 1043277 | F93: 1905
A94: CHTR | B94: Charter Communications | C94: Stamford, Connecticut | D94: 2016-09-08 | E94: 1091667 | F94: 1993
A95: CI | B95: Cigna | C95: Bloomfield, Connecticut | D95: 1976-06-30 | E95: 1739940 | F95: 1982
A96: CINF | B96: Cincinnati Financial | C96: Fairfield, Ohio | D96: 1997-12-18 | E96: 20286 | F96: 1950
A97: CL | B97: Colgate-Palmolive | C97: New York, New York | D97: 1957-03-04 | E97: 21665 | F97: 1806
A98: CLX | B98: The Clorox Company | C98: Oakland, California | D98: 1969-03-31 | E98: 21076 | F98: 1913
A99: CMA | B99: Comerica Inc. | C99: Dallas, Texas | D99: 1995-12-01 | E99: 28412 | F99: 1849
A100: CMCSA | B100: Comcast Corp. | C100: Philadelphia, Pennsylvania | D100: 2002-11-19 | E100: 1166691 | F100: 1963
A101: CME | B101: CME Group Inc. | C101: Chicago, Illinois | D101: 2006-08-11 | E101: 1156375 | F101: 1848
A102: CMG | B102: Chipotle Mexican Grill | C102: Newport Beach, California | D102: 2011-04-28 | E102: 1058090 | F102: 1993
A103: CMI | B103: Cummins Inc. | C103: Columbus, Indiana | D103: 1965-03-31 | E103: 26172 | F103: 1919
A104: CMS | B104: CMS Energy | C104: Jackson, Michigan | D104: 1999-05-03 | E104: 811156 | F104: 1886
A105: CNC | B105: Centene Corporation | C105: St. Louis, Missouri | D105: 2016-03-30 | E105: 1071739 | F105: 1984
A106: CNP | B106: CenterPoint Energy | C106: Houston, Texas | D106: 1985-07-31 | E106: 1130310 | F106: 1882
A107: COF | B107: Capital One Financial | C107: Tysons Corner, Virginia | D107: 1998-07-01 | E107: 927628 | F107: 1994
A108: COG | B108: Cabot Oil & Gas | C108: Houston, Texas | D108: 2008-06-23 | E108: 858470 | F108: 1989
A109: COO | B109: The Cooper Companies | C109: San Ramon, California | D109: 2016-09-23 | E109: 711404 | F109: 1958
A110: COP | B110: ConocoPhillips | C110: Houston, Texas | D110: 1957-03-04 | E110: 1163165 | F110: 2002
A111: COST | B111: Costco Wholesale Corp. | C111: Issaquah, Washington | D111: 1993-10-01 | E111: 909832 | F111: 1976
A112: CPB | B112: Campbell Soup | C112: Camden, New Jersey | D112: 1957-03-04 | E112: 16732 | F112: 1869
A113: CPRT | B113: Copart Inc | C113: Dallas, Texas | D113: 2018-07-02 | E113: 900075 | F113: 1982
A114: CRM | B114: Salesforce.com | C114: San Francisco, California | D114: 2008-09-15 | E114: 1108524 | F114: 1999
A115: CSCO | B115: Cisco Systems | C115: San Jose, California | D115: 1993-12-01 | E115: 858877 | F115: 1984
A116: CSX | B116: CSX Corp. | C116: Jacksonville, Florida | D116: 1967-09-30 | E116: 277948 | F116: 1980
A117: CTAS | B117: Cintas Corporation | C117: Mason, Ohio | D117: 2001-03-01 | E117: 723254 | F117: 1929
A118: CTLT | B118: Catalent | C118: Somerset, New Jersey | D118: 2020-09-21 | E118: 1596783 | F118: 2007
A119: CTSH | B119: Cognizant Technology Solutions | C119: Teaneck, New Jersey | D119: 2006-11-17 | E119: 1058290 | F119: 1994
A120: CTVA | B120: Corteva | C120: Wilmington, Delaware | D120: 2019-06-03 | E120: 1755672 | F120: 2019
A121: CTXS | B121: Citrix Systems | C121: Fort Lauderdale, Florida | D121: 1999-12-01 | E121: 877890 | F121: 1989
A122: CVS | B122: CVS Health | C122: Woonsocket, Rhode Island | D122: 1957-03-04 | E122: 64803 | F122: 1996
A123: CVX | B123: Chevron Corp. | C123: San Ramon, California | D123: 1957-03-04 | E123: 93410 | F123: 1879
A124: CZR | B124: Caesars Entertainment | C124: Reno, Nevada | D124: 2021-03-22 | E124: 1590895 | F124: 1973
A125: D | B125: Dominion Energy | C125: Richmond, Virginia | E125: 715957 | F125: 1983
A126: DAL | B126: Delta Air Lines Inc. | C126: Atlanta, Georgia | D126: 2013-09-11 | E126: 27904 | F126: 1929
A127: DD | B127: DuPont de Nemours Inc | C127: Wilmington, Delaware | D127: 2019-04-02 | E127: 1666700 | F127: 2017
A128: DE | B128: Deere & Co. | C128: Moline, Illinois | D128: 1957-03-04 | E128: 315189 | F128: 1837
A129: DFS | B129: Discover Financial Services | C129: Riverwoods, Illinois | D129: 2007-07-02 | E129: 1393612 | F129: 1985
A130: DG | B130: Dollar General | C130: Goodlettsville, Tennessee | D130: 2012-12-03 | E130: 29534 | F130: 1939
A131: DGX | B131: Quest Diagnostics | C131: Secaucus, New Jersey | D131: 2002-12-12 | E131: 1022079 | F131: 1967
A132: DHI | B132: D. R. Horton | C132: Arlington, Texas | D132: 2005-06-22 | E132: 882184 | F132: 1978
A133: DHR | B133: Danaher Corp. | C133: Washington, D.C. | E133: 313616 | F133: 1969
A134: DIS | B134: The Walt Disney Company | C134: Burbank, California | D134: 1976-06-30 | E134: 1744489 | F134: 1923
A135: DISCA | B135: Discovery, Inc. (Series A) | C135: New York, New York | D135: 2010-03-01 | E135: 1437107 | F135: 1985
A136: DISCK | B136: Discovery, Inc. (Series C) | C136: New York, New York | D136: 2014-08-07 | E136: 1437107 | F136: 1985
A137: DISH | B137: Dish Network | C137: Meridian, Colorado | D137: 2017-03-13 | E137: 1001082 | F137: 1980
A138: DLR | B138: Digital Realty Trust Inc | C138: Austin, Texas | D138: 2016-05-18 | E138: 1297996 | F138: 2004
A139: DLTR | B139: Dollar Tree | C139: Chesapeake, Virginia | D139: 2011-12-19 | E139: 935703 | F139: 1986
A140: DOV | B140: Dover Corporation | C140: Downers Grove, Illinois | D140: 1985-10-31 | E140: 29905 | F140: 1955
A141: DOW | B141: Dow Inc. | C141: Midland, Michigan | D141: 2019-04-01 | E141: 1751788 | F141: 2019
A142: DPZ | B142: Domino's Pizza | C142: Ann Arbor, Michigan | D142: 2020-05-12 | E142: 1286681 | F142: 1960
A143: DRE | B143: Duke Realty Corp | C143: Indianapolis, Indiana | D143: 2017-07-26 | E143: 783280 | F143: 1972
A144: DRI | B144: Darden Restaurants | C144: Orlando, Florida | E144: 940944 | F144: 1938
A145: DTE | B145: DTE Energy Co. | C145: Detroit, Michigan | D145: 1957-03-04 | E145: 936340 | F145: 1995
A146: DUK | B146: Duke Energy | C146: Charlotte, North Carolina | D146: 1976-06-30 | E146: 1326160 | F146: 1904
A147: DVA | B147: DaVita Inc. | C147: Denver, Colorado | D147: 2008-07-31 | E147: 927066 | F147: 1979
A148: DVN | B148: Devon Energy | C148: Oklahoma City, Oklahoma | D148: 2000-08-30 | E148: 1090012 | F148: 1971
A149: DXC | B149: DXC Technology | C149: Tysons Corner, Virginia | D149: 2017-04-04 | E149: 1688568 | F149: 2017
A150: DXCM | B150: DexCom | C150: San Diego, California | D150: 2020-05-12 | E150: 1093557 | F150: 1999
A151: EA | B151: Electronic Arts | C151: Redwood City, California | D151: 2002-07-22 | E151: 712515 | F151: 1982
A152: EBAY | B152: eBay Inc. | C152: San Jose, California | D152: 2002-07-22 | E152: 1065088 | F152: 1995
A153: ECL | B153: Ecolab Inc. | C153: St. Paul, Minnesota | D153: 1989-01-31 | E153: 31462 | F153: 1923
A154: ED | B154: Consolidated Edison | C154: New York, New York | E154: 1047862 | F154: 1823
A155: EFX | B155: Equifax Inc. | C155: Atlanta, Georgia | D155: 1997-06-19 | E155: 33185 | F155: 1899
A156: EIX | B156: Edison Int'l | C156: Rosemead, California | D156: 1957-03-04 | E156: 827052 | F156: 1886
A157: EL | B157: Estée Lauder Companies | C157: New York, New York | D157: 2006-01-05 | E157: 1001250 | F157: 1946
A158: EMN | B158: Eastman Chemical | C158: Kingsport, Tennessee | D158: 1994-01-01 | E158: 915389 | F158: 1920
A159: EMR | B159: Emerson Electric Company | C159: Ferguson, Missouri | D159: 1965-03-31 | E159: 32604 | F159: 1890
A160: ENPH | B160: Enphase Energy | C160: Fremont, California | D160: 2021-01-07 | E160: 1463101 | F160: 2006
A161: EOG | B161: EOG Resources | C161: Houston, Texas | D161: 2000-11-02 | E161: 821189 | F161: 1999
A162: EQIX | B162: Equinix | C162: Redwood City, California | D162: 2015-03-20 | E162: 1101239 | F162: 1998
A163: EQR | B163: Equity Residential | C163: Chicago, Illinois | D163: 2001-12-03 | E163: 906107 | F163: 1969
A164: ES | B164: Eversource Energy | C164: Hartford, Connecticut | E164: 72741 | F164: 1966
A165: ESS | B165: Essex Property Trust, Inc. | C165: San Mateo, California | D165: 2014-04-02 | E165: 920522 | F165: 1971
A166: ETN | B166: Eaton Corporation | C166: Dublin, Ireland | E166: 1551182 | F166: 1911
A167: ETR | B167: Entergy Corp. | C167: New Orleans, Louisiana | D167: 1957-03-04 | E167: 65984 | F167: 1913
A168: ETSY | B168: Etsy | C168: Brooklyn, New York | D168: 2020-09-21 | E168: 1370637 | F168: 2005
A169: EVRG | B169: Evergy | C169: Kansas City, Missouri | D169: 2018-06-05 | E169: 1711269 | F169: 1909
A170: EW | B170: Edwards Lifesciences | C170: Irvine, California | D170: 2011-04-01 | E170: 1099800 | F170: 1958
A171: EXC | B171: Exelon Corp. | C171: Chicago, Illinois | D171: 1957-03-04 | E171: 1109357 | F171: 2000
A172: EXPD | B172: Expeditors | C172: Seattle, Washington | D172: 2007-10-10 | E172: 746515 | F172: 1979
A173: EXPE | B173: Expedia Group | C173: Seattle, Washington | D173: 2007-10-02 | E173: 1324424 | F173: 1996
A174: EXR | B174: Extra Space Storage | C174: Salt Lake City, Utah | D174: 2016-01-19 | E174: 1289490 | F174: 1977
A175: F | B175: Ford Motor Company | C175: Dearborn, Michigan | D175: 1957-03-04 | E175: 37996 | F175: 1903
A176: FANG | B176: Diamondback Energy | C176: Midland, Texas | D176: 2018-12-03 | E176: 1539838 | F176: 2007
A177: FAST | B177: Fastenal Co | C177: Winona, Minnesota | D177: 2008-09-15 | E177: 815556 | F177: 1967
A178: FB | B178: Facebook, Inc. | C178: Menlo Park, California | D178: 2013-12-23 | E178: 1326801 | F178: 2004
A179: FBHS | B179: Fortune Brands Home & Security | C179: Deerfield, Illinois | D179: 2016-06-22 | E179: 1519751 | F179: 2011 (1969)
A180: FCX | B180: Freeport-McMoRan Inc. | C180: Phoenix, Arizona | E180: 831259 | F180: 1912
A181: FDX | B181: FedEx Corporation | C181: Memphis, Tennessee | D181: 1980-12-31 | E181: 1048911 | F181: 1971
A182: FE | B182: FirstEnergy Corp | C182: Akron, Ohio | E182: 1031296 | F182: 1997
A183: FFIV | B183: F5 Networks | C183: Seattle, Washington | D183: 2010-12-20 | E183: 1048695 | F183: 1996
A184: FIS | B184: Fidelity National Information Services | C184: Jacksonville, Florida | D184: 2006-11-10 | E184: 1136893 | F184: 1968
A185: FISV | B185: Fiserv Inc | C185: Brookfield, Wisconsin | D185: 2001-04-02 | E185: 798354 | F185: 1984
A186: FITB | B186: Fifth Third Bancorp | C186: Cincinnati, Ohio | E186: 35527 | F186: 1858
A187: FLIR | B187: FLIR Systems | C187: Wilsonville, Oregon | D187: 2009-01-02 | E187: 354908 | F187: 1978
A188: FLT | B188: FleetCor Technologies Inc | C188: Norcross, Georgia | D188: 2018-06-20 | E188: 1175454 | F188: 2000
A189: FMC | B189: FMC Corporation | C189: Philadelphia, Pennsylvania | D189: 2009-08-19 | E189: 37785 | F189: 1883
A190: FOX | B190: Fox Corporation (Class B) | C190: New York, New York | D190: 2015-09-18 | E190: 1754301 | F190: 2019
A191: FOXA | B191: Fox Corporation (Class A) | C191: New York, New York | D191: 2013-07-01 | E191: 1754301 | F191: 2019
A192: FRC | B192: First Republic Bank | C192: San Francisco, California | D192: 2019-01-02 | E192: 1132979 | F192: 1985
A193: FRT | B193: Federal Realty Investment Trust | C193: Rockville, Maryland | D193: 2016-02-01 | E193: 34903 | F193: 1962
A194: FTNT | B194: Fortinet | C194: Sunnyvale, California | D194: 2018-10-11 | E194: 1262039 | F194: 2000
A195: FTV | B195: Fortive Corp | C195: Everett, Washington | D195: 2016-07-01 | E195: 1659166 | F195: 2016
A196: GD | B196: General Dynamics | C196: Falls Church, Virginia | D196: 1957-03-04 | E196: 40533 | F196: 1899
A197: GE | B197: General Electric | C197: Boston, Massachusetts | E197: 40545 | F197: 1892
A198: GILD | B198: Gilead Sciences | C198: Foster City, California | D198: 2004-07-01 | E198: 882095 | F198: 1987
A199: GIS | B199: General Mills | C199: Golden Valley, Minnesota | D199: 1969-03-31 | E199: 40704 | F199: 1856
A200: GL | B200: Globe Life Inc. | C200: McKinney, Texas | D200: 1989-04-30 | E200: 320335 | F200: 1900
... 306 more rows

Sheet Top Index Funds
A1: Ticker | B1: Fund Name | C1: Issuer | D1: Segment
A2: SPY | B2: SPDR S&P 500 ETF Trust | C2: State Street Global Advisors | D2: Equity: U.S. - Large Cap
A3: GLD | B3: SPDR Gold Trust | C3: State Street Global Advisors | D3: Commodities: Precious Metals Gold
A4: XLF | B4: Financial Select Sector SPDR Fund | C4: State Street Global Advisors | D4: Equity: U.S. Financials
A5: XLK | B5: Technology Select Sector SPDR Fund | C5: State Street Global Advisors | D5: Equity: U.S. Technology
A6: DIA | B6: SPDR Dow Jones Industrial Average ETF Trust | C6: State Street Global Advisors | D6: Equity: U.S. - Large Cap
A7: XLV | B7: Health Care Select Sector SPDR Fund | C7: State Street Global Advisors | D7: Equity: U.S. Health Care
A8: XLE | B8: Energy Select Sector SPDR Fund | C8: State Street Global Advisors | D8: Equity: U.S. Energy
A9: MDY | B9: SPDR S&P Midcap 400 ETF Trust | C9: State Street Global Advisors | D9: Equity: U.S. - Mid Cap
A10: XLY | B10: Consumer Discretionary Select Sector SPDR Fund | C10: State Street Global Advisors | D10: Equity: U.S. Consumer Cyclicals
A11: XLI | B11: Industrial Select Sector SPDR Fund | C11: State Street Global Advisors | D11: Equity: U.S. Industrials
A12: SDY | B12: SPDR S&P Dividend ETF | C12: State Street Global Advisors | D12: Equity: U.S. - High Dividend Yield
A13: XLC | B13: Communication Services Select Sector SPDR Fund | C13: State Street Global Advisors | D13: Equity: U.S. Telecommunications
A14: BIL | B14: SPDR Bloomberg Barclays 1-3 Month T-Bill ETF | C14: State Street Global Advisors | D14: Fixed Income: U.S. - Government, Treasury Investment Grade U…
A15: XLU | B15: Utilities Select Sector SPDR Fund | C15: State Street Global Advisors | D15: Equity: U.S. Utilities
A16: XLP | B16: Consumer Staples Select Sector SPDR Fund | C16: State Street Global Advisors | D16: Equity: U.S. Consumer Non-cyclicals
A17: SPDW | B17: SPDR Portfolio Developed World ex-US ETF | C17: State Street Global Advisors | D17: Equity: Developed Markets Ex-U.S. - Total Market
A18: JNK | B18: SPDR Bloomberg Barclays High Yield Bond ETF | C18: State Street Global Advisors | D18: Fixed Income: U.S. - Corporate, Broad-based High Yield
A19: SPYV | B19: SPDR Portfolio S&P 500 Value ETF | C19: State Street Global Advisors | D19: Equity: U.S. - Large Cap Value
A20: SPYG | B20: SPDR Portfolio S&P 500 Growth ETF | C20: State Street Global Advisors | D20: Equity: U.S. - Large Cap Growth
A21: SPLG | B21: SPDR Portfolio S&P 500 ETF | C21: State Street Global Advisors | D21: Equity: U.S. - Large Cap
A23: Source: etf.com
A25: Full list: | B25: https://en.wikipedia.org/wiki/List_of_American_exchange-traded_funds

Sheet FundiesAdj (hidden)
A1: Ticker | B1: Revenues | C1: CostOfGoods | D1: PreTaxProfit | E1: OperatingIncomeLoss | F1: NetIncome | G1: DirectCostsOfLeasedAndRentedPropertyOrEquipment | H1: NetIncomeLossAvailableToCommonStockholdersBasic | I1: NetIncomeLossAvailableToCommonStockholdersDiluted | J1: DepreciationDepletionAndAmmortisation | K1: DepreciationAmortizationAndOther | L1: CashAndCashEquivalents | M1: AccountsReceivableNetCurrent | N1: OtherAssetsCurrent | O1: AssetsCurrent | P1: Assets | Q1: DeferredRevenueCurrent | R1: PP&E | S1: AccountsPayableCurrent | T1: ShortTermDebt | U1: LiabilitiesCurrent | V1: LongTermDebt | W1: Liabilities | X1: StockholdersEquity | Y1: LiabilitiesAndStockholdersEquity | Z1: NetCashProvidedByUsedInFinancingActivities | AA1: NetCashProvidedByUsedInInvestingActivities | AB1: NetCashProvidedByUsedInOperatingActivities | AC1: WeightedAverageNumberOfSharesOutstandingBasic | AD1: WeightedAverageNumberOfDilutedSharesOutstanding | AE1: EarningsPerShareBasic | AF1: EarningsPerShareDiluted | AG1: CommonStockDividendsPerShareCashPaid | AH1: CommonStockParOrStatedValuePerShare | AI1: CommonStockSharesAuthorized | AJ1: CommonStockSharesIssued | AK1: CommonStockValue | AL1: PreferredStockParOrStatedValuePerShare | AM1: PreferredStockSharesAuthorized | AN1: PreferredStockSharesIssued | AO1: PreferredStockValue | AP1: EntityPublicFloat | AQ1: TreasuryStockIssuedForEmployeeCompensationAndStockOptionPlansNetOfCashProceeds | AR1: TreasuryStockShares | AS1: TreasuryStockValue | AT1: dateFiled | AU1: formFiscalQuarter | AV1: formFiscalYear | AW1: periodEnd | AX1: periodStart | AY1: reportLink | AZ1: version | BA1: id | BB1: key | BC1: subkey | BD1: date | BE1: updated
A2: AAPL | B2: 274515000000 | C2: 169559000000 | D2: 67091000000 | E2: 66288000000 | F2: 57411000000 | J2: 11056000000 | L2: 39789000000 | M2: 16120000000 | N2: 11264000000 | O2: 143713000000 | P2: 323888000000 | Q2: 6643000000 | R2: 36766000000 | S2: 42296000000 | T2: 8773000000 | U2: 105392000000 | W2: 258549000000 | X2: 65339000000 | Y2: 323888000000 | Z2: -86820000000 | AA2: -4289000000 | AB2: 80674000000 | AC2: 17352119000 | AD2: 17528214000 | AE2: 3.31 | AF2: 3.28 | AH2: 1e-05 | AI2: 50400000000 | AJ2: 16976763000 | AL2: 0 | AM2: 0 | AN2: 0 | AO2: 0 | AT2: 2020-10-30 | AW2: 2020-09-26 | BA2: REPORTED_FINANCIALS | BB2: AAPL | BC2: 10-K | BD2: 2020-10-30 | BE2: 2021-02-11
A3: FB | B3: 85965000000 | C3: 16692000000 | D3: 33180000000 | E3: 32671000000 | F3: 29146000000 | H3: 29146000000 | J3: 6862000000 | L3: 17954000000 | M3: 11330000000 | O3: 75670000000 | P3: 159316000000 | Q3: 382000000 | R3: 45633000000 | S3: 1331000000 | U3: 14981000000 | W3: 31026000000 | X3: 128290000000 | Y3: 159316000000 | Z3: -10292000000 | AA3: -30059000000 | AB3: 38747000000 | AC3: 2851000000 | AD3: 2888000000 | AE3: 10.22 | AF3: 10.09 | AH3: 6e-06 | AK3: 0 | AL3: 0 | AM3: 0 | AN3: 0 | AO3: 0 | AT3: 2021-01-28 | AW3: 2020-12-31 | BA3: REPORTED_FINANCIALS | BB3: FB | BC3: 10-K | BD3: 2021-01-28 | BE3: 2021-02-11
A4: GME | B4: 5089800000 | C4: 3830300000 | D4: -269900000 | E4: -237800000 | F4: -215300000 | J4: 80000000 | L4: 635000000 | M4: 105300000 | O4: 1551200000 | P4: 2472600000 | Q4: 348200000 | R4: 201200000 | S4: 341800000 | T4: 121700000 | U4: 1342700000 | V4: 362700000 | W4: 2035900000 | X4: 436700000 | Y4: 2472600000 | Z4: -55400000 | AA4: 36900000 | AB4: 123700000 | AC4: 65000000 | AD4: 65000000 | AE4: -3.31 | AF4: -3.31 | AH4: 0.001 | AI4: 300000000 | AJ4: 65300000 | AK4: 100000 | AL4: 0 | AM4: 0 | AN4: 0 | AO4: 0 | AT4: 2021-03-23 | AW4: 2021-01-30 | BA4: REPORTED_FINANCIALS | BB4: GME | BC4: 10-K | BD4: 2021-03-23 | BE4: 2021-03-24
A5: TSLA | B5: 31536000000 | C5: 24906000000 | D5: 1154000000 | E5: 1994000000 | F5: 862000000 | H5: 690000000 | J5: 1570000000 | L5: 19384000000 | M5: 1886000000 | O5: 26717000000 | P5: 52148000000 | Q5: 1458000000 | R5: 12747000000 | S5: 6051000000 | T5: 1758000000 | U5: 14248000000 | V5: 8462000000 | W5: 28418000000 | X5: 22225000000 | Y5: 52148000000 | Z5: 9973000000 | AA5: -3132000000 | AB5: 5943000000 | AC5: 933000000 | AD5: 1083000000 | AE5: 0.74 | AF5: 0.64 | AH5: 0.001 | AI5: 2000000000 | AJ5: 960000000 | AK5: 1000000 | AL5: 0.001 | AM5: 100000000 | AN5: 0 | AO5: 0 | AT5: 2021-02-08 | AW5: 2020-12-31 | BA5: REPORTED_FINANCIALS | BB5: TSLA | BC5: 10-K | BD5: 2021-02-08 | BE5: 2021-02-11

Sheet Adjustments
A1: Income Statement Item Rollups | B1: Balance Sheet Item Rollups | C1: Cashflow Item Rollup
A3: Revenues. xbrl items: | B3: Cash. xbrl items: | C3: NetCashProvidedByUsedInFinancingActivities xbrl items
A4: RevenueFromContractWithCustomerExcludingAssessedTax | B4: CashCashEquivalentsRestrictedCashAndRestrictedCashEquivalents | C4: NetCashProvidedByUsedInFinancingActivities
A5: RevenueFromContractWithCustomerIncludingAssessedTax | B5: CashAndCashEquivalentsAtCarryingValue | C5: NetCashProvidedByUsedInFinancingActivitiesContinuingOperations
A6: RegulatedAndUnregulatedOperatingRevenue
A7: RevenuesNetOfInterestExpense | B7: Deferred Revenue. xbrl items:
B8: DeferredRevenueCurrent | C8: NetCashProvidedByUsedInOperatingActivities xbrl items
A9: CostOfGoods. xbrl items: | B9: ContractWithCustomerLiabilityCurrent | C9: NetCashProvidedByUsedInOperatingActivities
A10: CostOfGoodsAndServicesSold | C10: NetCashProvidedByUsedInOperatingActivitiesContinuingOperation
A11: CostOfRevenue | B11: AccountsReceivableNetCurrent. xbrl items:
B12: AccountsReceivableNetCurrent | C12: NetCashProvidedByUsedInInvestingActivities xbrl items
A13: PreTaxProfit. xbrl items: | B13: ReceivablesNetCurrent | C13: NetCashProvidedByUsedInInvestingActivities
A14: IncomeLossFromContinuingOperationsBeforeIncomeTaxesMinorityInterestAndIncomeLoss | C14: NetCashProvidedByUsedInInvestingActivitiesContinuingOperations
A15: IncomeLossFromContinuingOperationsBeforeIncomeTaxesExtraordinaryItemsNoncontroll | B15: PP&E. xbrl items:
A16: IncomeLossFromContinuingOperationsAfterNoncontrollingInterestBeforeIncomeTaxes | B16: PropertyPlantAndEquipmentNet
A17: IncomeLossFromContinuingOperationsBeforeIncomeTaxes | B17: PropertyPlantandEquipmentandFinanceLeaseRightofUseAssetafterAccumulatedDepreciat
B18: PropertyPlantAndEquipmentAndFinanceLeaseRightOfUseAssetAfterAccumulatedDepreci.1
A19: OperatingIncome. xbrl items:
A20: OperatingIncomeLoss | B20: ShortTermDebt. xbrl items:
A21: IncomeLossFromContinuingOperations | B21: ShortTermBorrowings
B22: LongTermDebtCurrent
A23: NetIncome. xbrl items: | B23: DebtCurrent
A24: ProfitLoss
A25: NetIncomeLoss | B25: Liabilities. xbrl items:
B26: Liabilities
A27: Depreciation. xbrl items: | B27: [LiabilitiesAndStockholdersEquity]-[StockholdersEquityRolled]
A28: DepreciationDepletionAndAmortization
A29: DepreciationAndAmortization | B29: StockHoldersEquity. xbrl items:
A30: DepreciationAmortizationAndOther | B30: StockholdersEquity
A31: DepreciationAndImpairmentOnDispositionOfPropertyAndEquipment | B31: StockholdersEquityIncludingPortionAttributableToNoncontrollingInterest
A32: DepreciationAmortizationAndAccretionNet
A34: Above are the adjustments to the iXBRL reporting items to help create a standardised view of the data. This is imperfect but better than nothing!
A35: For proper adjustments subscribe to the paid API and use the Financials end point, with data from New Constructs.

Sheet Other Notes
A1: Updating your Queries Automatically
A2: 1. From the ribbon select Data -> Queries & Connections.
A3: 2. Right-click on the query and select Properties… from the menu.
A4: 3. Tick the Refresh Every n Minutes option and enter a time interval.
A5: 4. Click OK to close the Query Properties dialog box.

Sheet Account
E1: account
A2: Token | B2: Column1 | C2: Secret_Token | D2: Base_Url | E2: Full_URL
A3: =+my_token -> 0 | C3: =+Secret_Token -> 0 | D3: https://cloud.iexapis.com/stable/account/metadata?token= | E3: =+account[[#This Row],[Base_Url]]&account[[#This Row],[Secret_Token]] -> https://cloud.iexapis.com/stable/account/metadata?token=0
D5: Powerquery: | E5: = Json.Document(Web.Contents(Excel.CurrentWorkbook(){[Name="account"]}[Content]{0}[Full_URL]))
A7: Name | B7: Value
A8: payAsYouGoEnabled | B8: TRUE
A9: effectiveDate | B9: 1548195850000
A10: subscriptionTermType | B10: annual
A11: tierName | B11: scale
A12: messageLimit | B12: 2000000000
A13: creditLimit | B13: 2000000000
A14: messagesUsed | B14: 103542345
A15: creditsUsed | B15: 103542345
A16: circuitBreaker | B16: 22222222222223
